Cogmind - Beta 16 @@@ ROGUE MODE // 2025.11.05 @ 16:09:25 Player: Savant Result: Escaped singularity! Performance ------------- Evolutions (9) 4500 Regions Visited (34) 6800 Robots Destroyed (512) 2560 Value Destroyed (36825) 36825 Prototype IDs (368) 7360 Alien Tech Used (10) 2000 Bonus (68106) 68106 TOTAL SCORE: 128151 Bonus ------- High Alert Combat Kills 5328 Follower Combat Kills 12426 Destroyed Unchained 2000 Entered Garrisons 2600 Used RIF Installer 6500 Destroyed MAIN.C Guards 500 Met MAIN.C 5000 Destroyed MAIN.C Shell 5000 Destroyed MAIN.C 10000 Met Architect 300 Destroyed A8 300 Destroyed A6 400 Destroyed Architect 15000 Win 3000 Friendly Fire -248 Cogmind --------- Core Integrity 508/1600 Matter 166/300 Energy 99/100 System Corruption 0% Temperature Cool (0) Movement Core (50) Location Near Former Tau Ceti IV Parts ------- > --- POWER (3) -------- (None) > --- PROPULSION (8) --- (None) > --- UTILITY (12) ----- (None) > --- WEAPON (3) ------- (None) > --- INVENTORY (9) ---- Advanced Energy Well (500) Experimental Energy Well (445) Long-range Terrain Scanner Quantum Capacitor Improved Utility Shielding Compact HERF Cannon Sigix Broadsword Peak State ------------ > --- POWER ------------ Improved Quantum Reactor Zero-point Reactor Zero-point Reactor > --- PROPULSION ------- Heavy Shield Leg Heavy Shield Leg Heavy Shield Leg High-density Centrium Leg Experimental Biometal Leg > --- UTILITY ---------- Huge Storage Unit Spectral Analyzer Advanced Targeting Computer Experimental Targeting Computer Experimental Core Analyzer Advanced Phase Shifter SHELL Armor Graphene Brace Advanced Force Field Spacefold Activator > --- WEAPON ----------- Heavy Quantum Rifle Heavy Quantum Rifle Heavy Quantum Rifle > --- INVENTORY -------- Heavy Antimatter Reactor Zero-point Reactor Enhanced Flexi-carbon Leg Centrium Leg Heavy Shield Leg Heavy Shield Leg High-density Centrium Leg Experimental Power Amplifier Advanced Energy Well Advanced Energy Well Experimental Energy Well Experimental Energy Well Experimental Matter Compressor Long-range Terrain Scanner Advanced Particle Charger Quantum Capacitor Advanced Weapon Cycler Improved Utility Shielding Advanced Force Field High-powered Transdimensional Reconstructor Heavy Quantum Rifle Compact HERF Cannon Enhanced Nova Cannon Fusion Bomb Launcher Sigix Broadsword [Rating: 265] Favorites ----------- Power Light Quantum Reactor Engine Heavy Ion Engine Power Core Light Nuclear Core Reactor Light Quantum Reactor Propulsion Armored Huge Wheel Treads Improved Heavy Treads Leg Biometal Leg Wheel Armored Huge Wheel Hover Unit Improved Antigrav System Utility Huge Storage Unit Device Graphene Brace Storage Huge Storage Unit Processor Spectral Analyzer Hackware Relay Coupler [Sentry] Protection Improved Medium Armor Plating Artifact Spacefold Activator Weapon Cooled Particle Cannon Energy Gun Heavy Gatling Laser Energy Cannon Cooled Particle Cannon Ballistic Gun Railgun Ballistic Cannon Enhanced Hardcell Cannon Launcher Fusion Bomb Launcher Special Weapon Advanced Remote Datajack Impact Weapon Great Maul Slashing Weapon Sigix Broadsword Special Melee Weapon Datajack Build | -11 -10 -10 -9 -9 -9 -8 -8 -8 -8 -7 -7 -7 -7 -6 -6 -6 -6 -5 -5 -4 -4 -3 -3 -3 -3 -3 -3 -2 -2 -1 -1 -1 -1 -1 ------- Run | Yrd Mat Min Mat Sto Gar Mat Gar Mat Gar Fac Gar Fac Gar Fac Gar Fac Gar Fac Gar Fac Gar Res Gar Res Qua Sec Gar Res Gar Acc Gar Acc Com Ac0 Slots Evolved 18 | . . . 2 . . 2 . . . 2 . . . 2 . . . 2 . 2 . 2 . . . . . 2 . 2 . . . . Power 2 | . . . . . . . . . . . . . . . . . . . . . . . . . . . . 2 . . . . . . Propulsion 5 | . . . 1 . . 1 . . . . . . . . . . . . . . . 2 . . . . . . . 1 . . . . Utility 10 | . . . 1 . . 1 . . . 1 . . . 2 . . . 2 . 2 . . . . . . . . . 1 . . . . Weapon 1 | . . . . . . . . . . 1 . . . . . . . . . . . . . . . . . . . . . . . . Parts Attached 492 | 7 9 4 22 12 6 12 12 8 14 8 20 3 8 9 16 9 20 2 14 35 16 11 7 30 14 29 16 13 18 9 13 16 37 13 Power 35 | 1 . 1 3 . . 1 . . . . 2 . . . 3 . 4 . 1 1 . . . . . . 1 3 4 . 1 3 4 2 Engine 7 | 1 . . 3 . . 1 . . . . . . . . 2 . . . . . . . . . . . . . . . . . . . Core 5 | . . 1 . . . . . . . . . . . . 1 . 3 . . . . . . . . . . . . . . . . . Reactor 23 | . . . . . . . . . . . 2 . . . . . 1 . 1 1 . . . . . . 1 3 4 . 1 3 4 2 Propulsion 108 | 2 3 1 7 7 3 6 5 2 2 . 3 . 1 . 1 . 1 . 3 3 2 2 1 3 1 15 3 2 2 1 5 4 12 5 Treads 37 | . 1 . 5 5 1 6 3 2 2 . 1 . 1 . 1 . . . 3 2 1 . 1 1 . 1 . . . . . . . . Leg 47 | 2 2 1 2 . . . . . . . . . . . . . . . . . . . . . . 6 3 2 2 1 5 4 12 5 Wheel 16 | . . . . 2 2 . 2 . . . 2 . . . . . 1 . . 1 1 2 . 2 1 . . . . . . . . . Hover 8 | . . . . . . . . . . . . . . . . . . . . . . . . . . 8 . . . . . . . . Flight . | . . . . . . . . . . . . . . . . . . . . . . . . . . . . . . . . . . . Utility 254 | 2 2 . 6 . 3 4 4 5 8 5 13 2 7 9 10 6 14 2 6 24 12 8 5 15 10 11 7 7 8 7 7 9 13 3 Device 64 | 1 . . 3 . 1 . 1 . . . 2 . . . 2 . 1 2 1 11 . 3 . 5 3 6 3 3 3 3 . 4 4 2 Storage 15 | 1 1 . 2 . 1 . . . . . . . . . . 1 . . . 1 . 1 2 2 . 1 . 1 . . . 1 . . Processor 10 | . . . . . . . . 1 . . . . . . . . . . . . 1 1 1 1 1 1 . 1 . 1 . . 1 . Hackware 120 | . . . . . . 1 1 1 6 4 7 2 5 4 6 5 13 . 5 8 9 2 2 4 5 2 4 2 5 1 7 3 6 . Protection 44 | . 1 . 1 . 1 3 2 3 2 1 4 . 2 5 2 . . . . 4 2 1 . 3 1 . . . . 2 . 1 2 1 Artifact 1 | . . . . . . . . . . . . . . . . . . . . . . . . . . 1 . . . . . . . . Weapon 95 | 2 4 2 6 5 . 1 3 1 4 3 2 1 . . 2 3 1 . 4 7 2 1 1 12 3 3 5 1 4 1 . . 8 3 Energy Gun 18 | . 2 2 2 . . . . . 1 . . . . . . . . . . . . . . 6 . . . . . . . . 3 2 Energy Cannon 28 | . . . 2 2 . . 2 . . 2 2 . . . . 2 . . 1 4 . . . . 1 . 3 1 3 . . . 2 1 Ballistic Gun 18 | 2 1 . 1 1 . . . . 2 . . . . . 1 . . . . . 1 . 1 5 . 2 . . . . . . 1 . Ballistic Cannon 6 | . . . . . . . . . . . . . . . . . . . 1 1 1 . . . . . . . 1 1 . . 1 . Launcher 4 | . . . 1 . . . 1 . . . . . . . . . . . . . . . . . . . 2 . . . . . . . Special Weapon 16 | . 1 . . 1 . . . . 1 . . 1 . . 1 1 1 . 2 2 . 1 . 1 1 1 . . . . . . 1 . Impact Weapon 2 | . . . . 1 . . . . . 1 . . . . . . . . . . . . . . . . . . . . . . . . Slashing Weapon 1 | . . . . . . . . . . . . . . . . . . . . . . . . . 1 . . . . . . . . . Piercing Weapon . | . . . . . . . . . . . . . . . . . . . . . . . . . . . . . . . . . . . Special Melee Weapon 2 | . . . . . . 1 . 1 . . . . . . . . . . . . . . . . . . . . . . . . . . Unidentified Prototypes 17 | . . . 2 1 . . . . . . 1 . . . . . . . . 1 1 2 . 2 . 2 . . 1 . . 1 2 1 Corrupted Parts 3 | . . . . . . . . . . . . . . . 1 . . . . . . . . . . . . . . . . . 2 . System Corruption 5 | . . . . . . . . . . . . . . . 1 . . . . . . . . . . . . . . . . . 4 . Parts Lost 94 | . 2 4 2 1 . 1 4 . . . 2 . 1 1 . . 1 . . 15 7 . . 16 2 6 6 . 1 1 . 5 1 15 Power 8 | . . 1 1 . . . . . . . . . . . . . 1 . . 1 . . . . . . . . . . . 1 . 3 Propulsion 22 | . 1 2 . 1 . . 1 . . . 1 . . . . . . . . . 1 . . 4 . 3 2 . 1 . . 1 . 4 Utility 47 | . . . . . . . 2 . . . 1 . 1 1 . . . . . 12 4 . . 8 2 3 3 . . 1 . 3 1 5 Weapon 17 | . 1 1 1 . . 1 1 . . . . . . . . . . . . 2 2 . . 4 . . 1 . . . . . . 3 Highest Loss Streak 8 | . 2 3 1 1 . 1 3 . . . 1 . 1 1 . . 1 . . 8 2 . . 5 1 4 3 . 1 1 . 3 1 5 To Critical Strikes 1 | . . 1 . . . . . . . . . . . . . . . . . . . . . . . . . . . . . . . . Average Backups 22 | 3 9 8 13 19 21 24 24 23 23 23 23 21 21 21 22 22 22 21 22 18 18 18 19 21 23 23 27 27 27 28 28 28 26 22 Power . | . 1 . . 1 1 . . . . . . . . 1 . . . . . . 1 1 . . . . . . . . . . . 2 Propulsion 2 | 2 3 2 3 4 5 5 5 5 4 3 3 3 3 3 2 2 2 2 1 3 3 2 2 1 . . 2 1 1 . . . 3 3 Utility 11 | . 2 4 4 6 7 10 12 11 11 11 11 12 11 11 13 15 14 14 14 8 9 12 13 13 10 8 9 13 13 17 18 20 12 11 Weapon 5 | . 2 1 4 6 5 6 5 5 6 6 5 3 3 3 3 3 3 4 5 4 3 2 3 3 10 8 7 5 6 5 5 3 5 5 Tool/Special . | . . . . . . . . . . . . . . . . . . . . . . . . . . . . . . . . . . . Unused Backups 91 | . 4 1 4 3 2 1 . . 6 1 5 . 3 . 3 . 4 . 3 3 3 . 3 7 10 5 1 . 2 . 6 1 7 3 Power 7 | . . 1 . . . . . . . . . . . . . . 1 . . . 1 . 1 . 1 2 . . . . . . . . Propulsion 13 | . 4 . 1 2 1 . . . . . 2 . . . . . . . . . . . . 1 . 1 . . . . . . 1 . Utility 44 | . . . 1 . 1 . . . 4 . 2 . 3 . 3 . 3 . 2 2 2 . 2 1 4 1 . . 2 . 3 . 5 3 Weapon 19 | . . . 2 1 . 1 . . 2 1 1 . . . . . . . . . . . . 4 2 1 1 . . . 1 1 1 . Tool/Special 8 | . . . . . . . . . . . . . . . . . . . 1 1 . . . 1 3 . . . . . 2 . . . Average Slot Usage (%) 88 | . 100 98 98 99 100 99 92 99 99 99 89 84 84 85 85 85 85 86 87 84 86 86 89 82 84 81 89 88 91 91 91 87 81 81 Engine 2 | . 14 11 9 11 11 9 9 9 9 7 3 . . . 3 6 . . . . . . . . . . . . . . . . . . Reactor 4 | . . . . . . . . . . . 3 7 7 6 . . 2 5 5 5 5 4 4 4 4 4 4 9 12 11 11 10 11 11 Treads 7 | . 5 14 28 30 23 20 18 18 18 15 7 7 7 6 5 6 6 5 7 7 5 4 4 6 4 1 . . . . . . . . Leg 6 | . 22 14 4 . . . . . . . . . . . . . . . . . . . . . . 3 26 25 24 26 26 22 19 20 Wheel 6 | . . . . 2 9 15 11 16 18 15 12 7 7 6 6 6 6 5 2 2 5 10 14 9 13 7 . . . . . . . . Device 9 | . 13 . 11 11 11 10 8 8 8 3 . . . . 3 1 . 3 2 20 15 15 18 14 15 13 15 8 8 12 10 13 16 14 Storage 6 | . 14 14 11 11 11 9 9 9 9 7 7 7 7 6 6 6 6 5 5 5 5 4 4 4 5 4 4 4 4 3 3 3 3 3 Processor 2 | . . . . . . . . 5 . . . . . . . . . . . . . . . . 1 4 9 8 8 8 11 11 11 15 Hackware 15 | . . . . . . 6 . . 5 19 12 18 11 23 19 32 33 29 32 20 22 20 19 20 22 18 17 24 24 16 15 14 5 . Protection 7 | . . 14 10 11 11 9 18 12 13 6 16 11 18 15 15 5 4 11 10 6 12 10 9 4 2 1 . . . 2 3 1 3 3 Energy Gun 1 | . 5 12 3 . . . . . 4 . . . . . . . . . . . . . . 2 4 3 . . . . . . . 8 Energy Cannon 8 | . . . 14 19 20 16 17 16 5 9 19 18 20 17 15 14 14 11 11 6 3 . . . 1 . 4 3 2 1 . 1 2 1 Ballistic Gun 1 | . 19 13 3 . . . . . 4 3 . . . . 2 2 . . . . . . . 3 . 1 1 . . . . . . . Ballistic Cannon 1 | . . . . . . . . . . . . . . . . . . . . 2 6 9 9 5 . . . . . . . . . . Special Weapon 2 | . 3 . . 2 . . . . 2 5 3 4 2 2 1 1 5 5 4 5 4 4 4 1 3 2 1 . 1 . 2 1 . . Peak Build Rating 265 | 7 8 10 23 26 25 31 35 36 39 46 71 71 72 79 82 82 81 87 107 133 121 131 131 148 169 202 205 202 209 223 218 228 264 265 Average Rating 112 | 4 7 8 18 23 24 28 32 33 36 43 57 69 70 77 76 78 77 85 93 121 114 125 129 136 152 166 194 195 203 215 213 209 243 250 On Entrance 99 | . 7 8 10 23 25 25 29 35 35 39 44 70 69 70 79 81 73 78 87 103 111 118 127 130 139 169 202 188 201 207 213 212 218 262 Avg Prop Armor Cover (%) 10 | . 7 8 8 14 8 14 12 13 13 12 10 12 10 9 10 12 13 12 11 12 9 7 8 8 11 8 . . . . . . . . Naked Turns 3 | . . . . . . . . . . . . . . . . . . . . . . . . . . . . . . . . . . 3 Heaviest Build 210 | 14 20 21 64 64 100 107 109 105 105 112 129 125 128 135 127 124 122 121 140 173 173 173 169 206 172 174 158 171 192 175 172 173 207 210 Greatest Support 240 | 20 20 20 66 69 69 83 83 28 24 24 56 28 75 75 75 28 28 28 155 145 28 54 54 215 60 178 178 178 178 203 203 209 240 240 Greatest Overweight (x) 9 | . . 1 . 3 4 4 8 8 4 4 5 4 4 4 4 4 4 4 4 6 6 3 3 4 3 9 . . 1 . . . 1 . Average Overweight (x) 2 | . . . . 1 2 3 3 4 3 4 3 4 3 2 3 3 3 4 1 2 5 3 2 2 2 2 . . . . . . . . Largest Inventory Capacity 29 | 8 10 10 20 20 25 25 25 25 25 25 25 25 25 25 25 25 25 25 25 25 25 25 25 25 25 29 29 29 29 29 29 29 29 29 Average Capacity 25 | 7 9 10 14 20 22 25 25 25 25 25 25 25 25 25 25 25 25 25 25 25 25 25 25 25 25 26 29 29 29 29 29 29 29 28 Most Carried 29 | 8 10 10 19 20 25 25 25 25 25 25 25 25 25 25 25 25 25 25 25 25 25 25 25 25 25 29 29 29 29 29 29 29 29 29 Average Carried 24 | 4 9 9 13 19 21 24 24 24 24 24 24 24 24 24 24 24 24 24 24 24 24 24 24 23 24 24 28 28 28 28 28 28 28 25 Final Capacity 29 | 8 10 10 20 20 25 25 25 25 25 25 25 25 25 25 25 25 25 25 25 25 25 25 25 25 25 29 29 29 29 29 29 29 29 9 Final Carried 29 | 7 10 8 19 19 25 25 25 25 25 24 25 25 25 25 25 25 25 25 25 24 25 25 25 23 25 29 29 29 29 29 29 29 29 9 Class Distribution -------------------- 46% | Botlord-Tank 14% | Botlord-Gladiator 11% | Mutant 5% | Scavenger-Mutant 5% | Botlord-Mutant 5% | Bothacker-Mutant Dominant Class ---------------- Mutant | -10/Materials Mutant | -10/Mines Mutant | -9/Materials Mutant | -9/Storage Mutant | -9/Garrison Scavenger-Mutant | -8/Materials Mutant | -8/Garrison Mutant | -8/Materials Bothacker-Mutant | -8/Garrison Bothacker-Tank | -7/Factory Botlord-Tank | -7/Garrison Botlord-Tank | -7/Factory Botlord-Tank | -7/Garrison Botlord-Tank | -6/Factory Botlord-Tank | -6/Garrison Botlord-Tank | -6/Factory Botlord-Tank | -6/Garrison Botlord-Tank | -5/Factory Botlord-Tank | -5/Garrison Botlord-Tank | -4/Factory Botlord-Tank | -4/Garrison Botlord-Tank | -3/Research Botlord-Tank | -3/Garrison Botlord-Tank | -3/Research Botlord-Tank | -3/Quarantine Botlord-Mutant | -3/Section 7 Botlord-Gladiator | -3/Garrison Botlord-Gladiator | -2/Research Botlord-Gladiator | -2/Garrison Botlord-Gladiator | -1/Access Botlord-Gladiator | -1/Garrison Botlord-Gladiator | -1/Access Hauler-Mutant | -1/Command Hauler-Gunner | -1/Access_0 Resources | -11 -10 -10 -9 -9 -9 -8 -8 -8 -8 -7 -7 -7 -7 -6 -6 -6 -6 -5 -5 -4 -4 -3 -3 -3 -3 -3 -3 -2 -2 -1 -1 -1 -1 -1 ----------- Run | Yrd Mat Min Mat Sto Gar Mat Gar Mat Gar Fac Gar Fac Gar Fac Gar Fac Gar Fac Gar Fac Gar Res Gar Res Qua Sec Gar Res Gar Acc Gar Acc Com Ac0 Matter Collected 25683 | 234 385 90 493 150 190 394 382 246 491 382 733 240 346 293 680 351 879 50 299 1894 2116 232 452 3349 894 1951 1374 398 994 349 1297 1196 1588 291 Remotely 501 | . . . . . . . . . . . . . . . . . . . . . . . . . 501 . . . . . . . . . Salvage Created 26292 | 38 606 268 1140 326 679 1129 845 802 358 . 1451 469 414 576 1401 234 489 . . 2296 990 102 . 1761 302 1330 1609 792 1746 659 402 1231 749 1098 Parts 1263 | 6 32 19 60 12 41 65 42 43 18 . 53 9 18 18 56 8 12 . . 99 45 3 . 71 18 87 69 48 57 38 21 64 58 73 Haulers Intercepted 4 | . . . 2 . . 1 . 1 . . . . . . . . . . . . . . . . . . . . . . . . . . Recyclers Shooed 16 | 1 1 . . 2 . 2 . . . . . . . 1 . 2 . . . 3 . . . 3 . . . . . . . . 1 . Parts Field Recycled . | . . . . . . . . . . . . . . . . . . . . . . . . . . . . . . . . . . . Retrieved Matter . | . . . . . . . . . . . . . . . . . . . . . . . . . . . . . . . . . . . Parts Self-Destructed . | . . . . . . . . . . . . . . . . . . . . . . . . . . . . . . . . . . . Prevented . | . . . . . . . . . . . . . . . . . . . . . . . . . . . . . . . . . . . Parts Restored . | . . . . . . . . . . . . . . . . . . . . . . . . . . . . . . . . . . . Kills | -11 -10 -10 -9 -9 -9 -8 -8 -8 -8 -7 -7 -7 -7 -6 -6 -6 -6 -5 -5 -4 -4 -3 -3 -3 -3 -3 -3 -2 -2 -1 -1 -1 -1 -1 ------- Run | Yrd Mat Min Mat Sto Gar Mat Gar Mat Gar Fac Gar Fac Gar Fac Gar Fac Gar Fac Gar Fac Gar Res Gar Res Qua Sec Gar Res Gar Acc Gar Acc Com Ac0 Combat Hostiles Destroyed 431 | . 14 9 19 4 14 14 21 16 12 . 8 7 7 8 16 3 7 . . 36 21 2 . 29 6 24 30 13 31 9 12 21 7 11 Melee 34 | . . . . . . 2 . . . . . . . . . . . . . 1 . . . . . 5 1 . 13 4 1 2 5 . Guns 70 | . 13 8 7 . . . . . 1 . . . . . . . . . . . 2 . . 10 6 13 . 1 . 1 . . . 8 Cannons 221 | . . . 11 4 14 11 6 12 6 . 5 6 7 8 7 3 7 . . 29 17 1 . 16 . 6 7 6 11 3 2 12 2 2 AOE 73 | . 1 1 . . . . 11 3 5 . 3 1 . . 8 . . . . 3 . . . . . . 14 4 6 . 9 4 . . Classes Destroyed 23 | 1 3 . 5 . . 3 2 . 2 . . 1 . . 1 . . . . 1 1 . . 2 . . . . 1 . . . . . Worker 8 | . . . 2 . . . . 1 . . . 1 . . . 1 . . . . . . . . 1 . . . . . . 2 . . Builder 14 | . . . . . . 2 . . . . . . . . . . . . . 6 . 1 . 1 . 1 . 1 . 1 . 1 . . Tunneler 3 | 2 . . . . . . . . . . . 1 . . . . . . . . . . . . . . . . . . . . . . Hauler 4 | . . . 2 . . 1 . 1 . . . . . . . . . . . . . . . . . . . . . . . . . . Recycler 21 | . . . 2 2 . 2 . . . . . 1 . 2 . . . . . 4 . . . 4 . . . 2 . 1 . 1 . . Mechanic 1 | . . . . . . . 1 . . . . . . . . . . . . . . . . . . . . . . . . . . . Operator 5 | . . . . . . 2 . 2 . . . . . . . . . . . 1 . . . . . . . . . . . . . . Watcher 15 | . 3 . 3 . . 4 . 1 . . . 1 . . . . . . . 1 . . . . . . 2 . . . . . . . Swarmer 135 | . 3 4 3 . 4 . 11 3 6 . 4 . 2 2 10 1 4 . . 12 11 . . 5 . 2 16 6 10 . 11 5 . . Cutter 1 | . . . . . . . . . . . . . . . . . . . . . . . . . . . . . 1 . . . . . Saboteur 1 | . . . . . . . . . . . . . . . . . . . . 1 . . . . . . . . . . . . . . Grunt 114 | . 11 5 8 2 7 5 4 8 1 . 2 3 2 2 4 2 2 . . 8 6 . . . . 2 10 2 13 2 3 . . . Brawler 6 | . . . . . . . . . 2 . . . . . 1 . . . . . 2 . . . . . . . . . . 1 . . Duelist 7 | . . . 1 1 . . . . 1 . . 1 . . . . . . . . . . . . 1 . 1 . . . . 1 . . Sentry 38 | . . . 7 1 3 7 4 5 1 . 1 1 . 1 1 . . . . . 1 . . . . 1 . . 4 . . . . . Demolisher 1 | . . . . . . . 1 . . . . . . . . . . . . . . . . . . . . . . . . . . . Specialist 2 | . . . . . . . . . . . . 1 . . . . . . . . . . . . . . . . . . . 1 . . Hunter 16 | . . . . . . 2 1 . . . . . . . . . . . . . . 1 . 1 . 1 2 . 2 2 . 4 . . Programmer 88 | . . . . . . . . . 1 . 3 1 3 3 . 1 1 . . 14 . 1 . 14 5 13 . 5 2 5 . 9 7 . Behemoth 6 | . . . . . . . . . . . . . . . 1 . . . . . . . . 2 . 2 1 . . . . . . . Cetus Guard 1 | . . . . . . . . . . . . . . . . . . . . . . . . 1 . . . . . . . . . . S7 Guard 2 | . . . . . . . . . . . . . . . . . . . . . . . . 1 . 1 . . . . . . . . Enhanced Grunt 5 | . . . . . . . . . . . . . . . . . . . . . . . . . . . . . . . . . . 5 Enhanced Sentry 1 | . . . . . . . . . . . . . . . . . . . . . . . . . . . . . . . . . . 1 Enhanced Hunter 2 | . . . . . . . . . . . . . . . . . . . . . . . . . . . . . . . . . . 2 CL-0N3 Special 2 | . . . . . . . . . . . . . . . . . . . . . . . . 2 . . . . . . . . . . Striker 2 | . . . . . . . . . . . . . . . . . . . . . 2 . . . . . . . . . . . . . Executioner 3 | . . . . . . . . . . . . . . . . . . . . . . . . 1 . 2 . . . . . . . . Alpha 7 2 | . . . . . . . . . . . . . . . . . . . . . . . . 1 . . . . . . . . 1 . Infiltrator 1 | . . . . . . . . . . . . . . . . . . . . . . . . 1 . . . . . . . . . . Best Kill Streak 10 | 2 7 4 5 5 5 3 4 7 6 . 3 5 3 3 6 1 2 . . 10 4 1 . 2 3 5 5 6 8 4 4 6 2 3 Combat Bots Only 8 | . 7 4 3 4 5 3 4 5 6 . 3 3 3 3 6 1 2 . . 6 4 1 . 2 3 5 5 6 8 4 4 5 2 3 Max Kills in Single Turn 6 | 1 1 1 2 1 2 1 2 4 3 . 3 2 2 1 6 1 1 . . 5 2 1 . 2 2 2 3 4 2 1 3 4 1 1 Gunslinging 1 | . . . . . . . . . . . . . . . . . . . . . . . . . . 1 . . . . . . . . Exploded 6 | . 1 1 . . . . 2 3 3 . 3 1 . . 6 . . . . 1 . . . . . . 3 3 2 . 3 4 . . Melee 1 | . . . . . . 1 . . . . . . . . . . . . . 1 . . . . . 1 1 . 1 1 1 1 1 . Uniques/NPCs Destroyed 7 | . . . . . . . . . . . . . . . . . . . . 1 . . . 1 . . . . . . . . 2 3 DW-4LL (-4/Factory) CL-0N3 (-3/Research) MAIN.C Shell (-1/Command) MAIN.C (-1/Command) A8 (-1/Access_0) A6 (-1/Access_0) Architect (-1/Access_0) Combat | -11 -10 -10 -9 -9 -9 -8 -8 -8 -8 -7 -7 -7 -7 -6 -6 -6 -6 -5 -5 -4 -4 -3 -3 -3 -3 -3 -3 -2 -2 -1 -1 -1 -1 -1 -------- Run | Yrd Mat Min Mat Sto Gar Mat Gar Mat Gar Fac Gar Fac Gar Fac Gar Fac Gar Fac Gar Fac Gar Res Gar Res Qua Sec Gar Res Gar Acc Gar Acc Com Ac0 Hostile Shots Fired 3622 | . 58 56 73 47 45 38 59 51 79 2 27 28 99 44 69 33 100 . 9 382 119 20 . 264 41 290 254 74 210 48 47 213 72 671 Missed 1237 | . 13 11 14 8 14 7 12 19 36 1 12 9 37 21 27 10 31 . 2 102 29 7 . 70 14 70 129 37 99 19 28 87 28 234 Deflected 19 | . . . . . . . . . . . . . . . . . . . . . . . . . . . . . 8 . . 2 1 8 Hits 2385 | . 45 45 59 39 31 31 47 32 43 1 15 19 62 23 42 23 69 . 7 280 90 13 . 194 27 220 125 37 111 29 19 126 44 437 Melee 34 | . . . 3 6 . . . . . . . . . . 2 . . . . 1 15 . . . . . 3 1 1 . . . . 2 Projectile 2351 | . 45 45 56 33 31 31 47 32 43 1 15 19 62 23 40 23 69 . 7 279 75 13 . 194 27 220 122 36 110 29 19 126 44 435 AOE 17 | . . . . . . . 14 . . . . . . . . . . . . . . . . 1 . . . . . . . 1 1 . Critical Strikes 124 | . . 2 6 1 . 1 2 4 3 . . . 1 . 4 1 2 . . 9 9 . . 12 6 14 5 3 5 2 . 2 6 24 Actively Blocked 74 | . . . 1 . . . . . . . . . . . 3 . . . . 9 9 . . 7 6 8 1 . . . . 1 5 24 Part Disruptions 7 | . . . . . . . . . . . . . . . . . 1 . . . . . . . . . . 1 . . . 3 1 1 Damage Taken 39762 | . 551 577 800 622 342 447 1171 484 610 29 281 327 715 407 937 547 708 . 105 3402 1390 179 . 6290 352 3793 2125 426 1251 303 246 1858 786 7701 Core 3908 | . 138 97 141 43 54 39 102 43 24 . 12 37 74 19 87 41 95 . 26 254 171 13 . 405 56 312 238 11 90 21 17 204 151 893 Absorbed by Shields 15286 | . . . . . . . 33 . . . 18 . 62 . 33 . 214 . 30 654 925 104 . 430 319 1301 606 446 1309 320 257 1253 685 6287 Reduced by Siege Mode 625 | . . . . . . . . . . . . . . . . . . . . 66 11 . . 417 . 131 . . . . . . . . Redirected to Shielding 486 | . . 18 29 . . . . . . . 3 . 10 . 12 . 11 . . 168 . . . . . . . . . 28 25 96 11 75 Ignored by Resistances 187 | . . . . . . . . . . . . 15 26 16 9 . . . . 109 . . . 12 . . . . . . . . . . Regen/Repaired (Parts) 4955 | . . . . . . . . 262 . . . . . . . 239 . . . 148 . 301 . 68 588 257 324 178 547 150 118 530 147 1098 Core Remaining (%) 59 | 100 . 6 . . 40 . . . 62 . . . 82 . . . 71 . 97 . 63 . . . . . 18 . 85 . . . . 31 Volleys Fired 2195 | 7 54 24 69 17 36 40 57 45 47 19 108 33 45 49 94 51 99 9 18 260 121 16 24 140 65 95 98 31 52 23 61 85 54 149 Largest 3 | 2 2 2 2 2 2 2 2 2 2 1 3 3 3 3 3 3 3 1 3 3 3 3 1 3 3 3 3 1 3 1 2 2 3 3 Hottest 313 | 40 100 60 168 136 136 136 136 136 143 5 90 90 90 90 90 100 100 35 123 190 202 139 58 300 300 313 278 120 298 120 240 178 236 310 Shots Fired 3596 | 14 104 45 128 32 69 80 97 89 74 19 201 59 80 88 183 81 137 9 20 295 166 22 24 315 82 180 123 31 82 23 64 90 72 418 Gun 981 | 14 100 45 53 . . . . . 30 . . . . . . 12 . . . . 7 2 . 182 26 128 17 3 . 9 . 8 . 345 Cannon 1936 | . . . 65 32 69 80 85 88 30 . 150 39 57 79 141 47 67 5 7 242 123 9 3 111 27 39 71 24 59 8 9 55 42 73 Launcher 55 | . . . . . . . 12 1 4 . 1 . . . 4 . . . . 6 . . . . . . 13 2 6 . 5 1 . . Special 624 | . 4 . 10 . . . . . 10 19 50 20 23 9 38 22 70 4 13 47 36 11 21 22 29 13 22 2 17 6 50 26 30 . Kinetic 645 | 14 90 24 19 . . . . . 4 . . . . . . 12 . . 1 56 88 9 3 201 4 54 17 . 14 1 . 10 24 . Thermal 2074 | . 4 6 109 32 69 80 85 88 56 . 150 39 57 79 141 47 67 5 6 176 . . . 15 49 113 40 24 45 7 9 45 18 413 Explosive 35 | . . . . . . . 8 1 4 . 1 . . . . . . . . . . . . . . . 7 2 6 . 5 1 . . Electromagnetic 158 | . 10 15 . . . . 4 . . . . . . . 4 . . . . 16 35 . . 32 . . 37 . . . . . . 5 Impact 74 | . . . . . . . . . . . . . . . . . . . . . 7 2 . 45 . . . 3 . 9 . 8 . . Robot Hit Streak 66 | 7 12 6 11 12 10 12 35 17 11 6 20 6 12 12 43 10 12 8 5 19 15 7 15 66 25 31 12 6 11 14 21 24 30 21 Robot Miss Streak 7 | 1 4 3 5 1 1 2 5 6 3 3 4 4 3 3 2 3 1 1 1 5 7 2 1 4 2 4 5 6 2 4 2 3 2 3 Penetration Max 2 | . . . . . . . . . . . . . . . . 1 . . . . 1 . . 2 . 1 . . . . . . . . Secondary Targets 19 | . 4 . 1 . . . . . . . . . . . . . . . . . . . . 2 2 5 . . . . . . . 5 Max Gunslinging Chain 2 | . 1 . 1 . . . . . . . . . . . . . . . . . . . . 1 1 2 . . . . . . . 1 Capacitor 143 | . . . . . . . . . . . . . . . . . . . . 143 . . . . . . . . . . . . . . Shots Hit Robots 2507 | 10 67 28 74 24 47 59 63 54 65 12 146 34 52 30 133 40 95 3 9 157 102 17 19 228 51 131 79 25 85 27 58 77 80 326 Core Hits 1003 | 2 32 17 38 7 21 29 32 28 19 . 42 11 14 13 51 6 13 . . 57 37 4 . 88 15 62 66 17 49 18 19 34 22 140 Critical Kills 34 | . . 1 1 . . . 3 1 . . . . . . . . . . . 3 11 2 . 6 . 1 . 2 1 . . 2 . . Critical Parts Destroyed 30 | . . . . . . 2 . . . . . . . . . . . . . 4 7 1 . 16 . . . . . . . . . . Critical Strikes 87 | . . 1 2 . . 2 3 1 1 . . . . . . . . . . 9 26 3 . 27 . 1 . 3 5 . . 2 1 . Burn 2 | . . . 1 . . . . . 1 . . . . . . . . . . . . . . . . . . . . . . . . . Meltdown 11 | . . . 1 . . . 3 1 . . . . . . . . . . . 1 . . . . . . . 2 1 . . 2 . . Destroy 59 | . . 1 . . . . . . . . . . . . . . . . . 6 25 3 . 23 . 1 . . . . . . . . Blast 8 | . . . . . . . . . . . . . . . . . . . . 2 1 . . 4 . . . . . . . . 1 . Smash 2 | . . . . . . 2 . . . . . . . . . . . . . . . . . . . . . . . . . . . . Sever 5 | . . . . . . . . . . . . . . . . . . . . . . . . . . . . 1 4 . . . . . Melee Attacks 271 | . . . . 1 10 19 4 13 30 7 . . . . . . . . . . . . . . 1 25 16 15 48 17 8 26 31 . Impact 57 | . . . . 1 10 19 4 10 6 7 . . . . . . . . . . . . . . . . . . . . . . . . Slashing 187 | . . . . . . . . . . . . . . . . . . . . . . . . . 1 25 16 15 48 17 8 26 31 . Piercing . | . . . . . . . . . . . . . . . . . . . . . . . . . . . . . . . . . . . Sneak Attacks 47 | . . . . . . 3 . . 21 . . . . . . . . . . . . . . . . 1 2 2 3 3 2 1 9 . Combat Hostiles 3 | . . . . . . 1 . . . . . . . . . . . . . . . . . . . . . . 1 . . . 1 . Follow-up Attacks . | . . . . . . . . . . . . . . . . . . . . . . . . . . . . . . . . . . . Martial Strikes 22 | . . . . . . . . . . . . . . . . . . . . . . . . . . . . . 9 3 . 8 2 . Damage Inflicted 84082 | 110 799 368 1320 553 1010 1513 2268 1265 1171 . 3492 785 1045 766 3435 664 1224 . . 5640 2388 306 . 7756 914 5381 5278 2454 6236 1943 2358 4123 4460 13057 Guns 24878 | 110 732 284 590 . . . . . 241 . . . . . . 193 . . . . 391 144 . 5256 914 3745 250 138 . 768 . 684 . 10438 Cannons 37902 | . . . 730 551 1010 1087 1244 1087 496 . 3192 571 1045 766 2939 471 1224 . . 4964 1987 162 . 2500 . 414 1955 847 1837 323 351 2113 1417 2619 Explosions 10331 | . 65 84 . . . . 1022 178 434 . 300 214 . . 496 . . . . 668 . . . . . . 2437 983 1526 . 1519 405 . . Melee 10861 | . . . . . . 425 . . . . . . . . . . . . . . . . . . . 1222 601 486 2841 852 488 921 3025 . Ramming 110 | . 2 . . 2 . 1 2 . . . . . . . . . . . . 8 10 . . . . . 35 . 32 . . . 18 . Kinetic 11188 | 110 682 108 150 . . . . . . . . . . . . 193 . . . 831 1588 162 . 4172 150 1086 250 . 321 . . 483 902 . Thermal 45034 | . 65 130 1170 551 1010 1087 1277 1087 737 . 3192 571 1045 766 3053 471 1224 . . 3951 . . . 580 764 3073 1130 847 1516 323 351 1630 515 12918 Explosive 7704 | . . . . . . . 741 178 434 . 300 214 . . . . . . . 88 . . . . . . 1316 983 1526 . 1519 405 . . Electromagnetic 4448 | . 50 130 . . . . 248 . . . . . . . 382 . . . . 762 399 . . 392 . . 1946 . . . . . . 139 Impact 5162 | . . . . . . 425 . . . . . . . . . . . . . . 391 144 . 2612 . . . 138 . 768 . 684 . . Slashing 10436 | . . . . . . . . . . . . . . . . . . . . . . . . . . 1222 601 486 2841 852 488 921 3025 . Piercing . | . . . . . . . . . . . . . . . . . . . . . . . . . . . . . . . . . . . Highest Corruption 44 | . . . . . . . . . 5 . . . 2 2 3 1 4 . . 40 40 . . 10 17 42 44 4 8 . . 6 16 . Average Corruption 16 | . . . . . . . . . 4 . . . 1 1 2 1 3 . . 35 40 . . 6 14 25 43 2 7 . . 2 10 . Corruption Purged 38 | . . . . . . . . . . . . . . . 3 . . . . 5 . . . 5 . 5 . . . . . . 20 . Corruption Blocked . | . . . . . . . . . . . . . . . . . . . . . . . . . . . . . . . . . . . Effects 806 | . . . . . . . . . 19 . . . 14 9 . 9 43 . . 147 87 . . 74 66 131 101 1 39 . . 17 49 . Message Errors 184 | . . . . . . . . . 7 . . . 5 2 . 3 15 . . 33 15 . . 14 15 30 27 . 10 . . 1 7 . Matter Fused 183 | . . . . . . . . . 2 . . . 4 3 . 2 10 . . 33 18 . . 20 17 34 16 . 5 . . 7 12 . Heat Flow Errors 97 | . . . . . . . . . 3 . . . 1 1 . 1 5 . . 21 9 . . 10 9 15 8 1 4 . . 1 8 . Energy Discharges 91 | . . . . . . . . . 2 . . . 1 2 . . 6 . . 11 12 . . 12 10 14 9 . 5 . . 4 3 . Parts Rejected 15 | . . . . . . . . . . . . . . . . . . . . 3 1 . . . . 3 5 . . . . . 3 . Parts Fused 12 | . . . . . . . . . . . . . . . . 1 . . . 2 . . . 3 . . 4 . 1 . . . 1 . Data Loss (minor) 84 | . . . . . . . . . 3 . . . 2 . . 1 2 . . 10 7 . . 9 7 16 10 . 8 . . 1 8 . Data Loss (major) 23 | . . . . . . . . . . . . . . 1 . 1 1 . . 4 6 . . 1 3 1 2 . 1 . . . 2 . Misfires 29 | . . . . . . . . . 2 . . . . . . . 2 . . 6 5 . . 1 2 3 3 . 2 . . 2 1 . Alerts 18 | . . . . . . . . . . . . . . . . . . . . 2 3 . . 1 1 3 3 . 3 . . 1 1 . Misdirections 16 | . . . . . . . . . . . . . . . . . . . . 9 2 . . . . 1 3 . . . . . 1 . Weapon Failures 54 | . . . . . . . . . . . . . 1 . . . 2 . . 13 9 . . 3 2 11 11 . . . . . 2 . Overload Shots 1 | . . . . . . . . . . . . . . . . . . . 1 . . . . . . . . . . . . . . . Overflow Damage 3280 | . . 27 . 11 9 157 30 4 6 . 17 130 15 50 49 29 24 . . 430 16 . . 77 . 335 174 211 276 290 129 331 448 5 Projectiles 870 | . . . . 11 9 5 6 2 6 . 17 34 15 50 18 29 24 . . 335 16 . . 77 . . 18 87 . . . 106 . 5 Explosions 633 | . . 27 . . . . 24 2 . . . 96 . . 31 . . . . 95 . . . . . . 78 124 117 . 32 7 . . Melee 1777 | . . . . . . 152 . . . . . . . . . . . . . . . . . . . 335 78 . 159 290 97 218 448 . Knockbacks 80 | . . . . . . . . . . . . . . . . . . . . 8 23 2 . 29 . . . . . 4 . 10 4 . Impact 13 | . . . . . . . . . . . . . . . . . . . . . . 2 . 2 . . . . . 4 . 4 1 . Kinetic 61 | . . . . . . . . . . . . . . . . . . . . 7 23 . . 23 . . . . . . . 5 3 . Secondary 6 | . . . . . . . . . . . . . . . . . . . . 1 . . . 4 . . . . . . . 1 . . Self-Inflicted Damage 709 | . . 30 . . . . 174 21 . . . . . . 6 . . . . 194 . . . . . . 127 . 84 . 73 . . . Shots 26 | . . 1 . . . . 6 1 . . . . . . 1 . . . . 3 . . . . . . 11 . 2 . 1 . . . Rammed 4 | . . . . 1 . . 1 . . . . . . . . . . . . 1 1 . . . . . . . . . . . . . Targets Rammed 11 | . 2 . . 1 . 1 1 . . . . . . . . . . . . 1 1 . . . . . 2 . 1 . . . 1 . Kicked 6 | . 2 . . . . . . . . . . . . . . . . . . . . . . . . . 2 . 1 . . . 1 . Crushed 1 | . . . . . . 1 . . . . . . . . . . . . . . . . . . . . . . . . . . . . Highest Temperature 429 | . 16 105 207 198 252 138 329 54 303 . 283 107 125 144 64 169 267 . 36 246 325 . 3 346 219 429 243 73 202 78 . 95 208 26 Average Temperature 66 | . 3 32 46 70 86 42 86 23 80 . 92 43 44 30 19 26 64 . 18 74 93 . 3 77 85 80 82 73 89 52 . 44 66 13 Received Heat Transfer 4195 | . 255 198 339 228 102 144 125 288 108 15 48 99 185 57 185 63 108 . 15 137 78 6 . 529 14 48 575 20 144 8 12 26 12 24 Effects 3 | . . . . . 2 . 1 . . . . . . . . . . . . . . . . . . . . . . . . . . . Energy Bleed 2 | . . . . . 2 . . . . . . . . . . . . . . . . . . . . . . . . . . . . . Short Circuit 1 | . . . . . . . 1 . . . . . . . . . . . . . . . . . . . . . . . . . . . Siege Activations 8 | . . . . . . . . . . . . . . . 1 . . . . 2 1 . . 1 . 3 . . . . . . . . Total Turns 232 | . . . . . . . . . . . . . . . 2 . . . . 32 55 . . 48 . 95 . . . . . . . . Longest Duration 55 | . . . . . . . . . . . . . . . 2 . . . . 29 55 . . 48 . 48 . . . . . . . . Martial Activations 15 | . . . . . . . . . . . . . . . . . . . . . . . . . . . . . 5 1 . 6 3 . Total Turns 523 | . . . . . . . . . . . . . . . . . . . . . . . . . . . . . 354 29 . 103 37 . Longest Duration 135 | . . . . . . . . . . . . . . . . . . . . . . . . . . . . . 135 29 . 33 18 . Shielding Activations 4 | . . . . . . . . . . . . . . . . . . . . . . . . . . . . . . . . . 1 3 Total Turns 137 | . . . . . . . . . . . . . . . . . . . . . . . . . . . . . . . . . 27 110 Longest Duration 46 | . . . . . . . . . . . . . . . . . . . . . . . . . . . . . . . . . 27 46 Robots Disrupted . | . . . . . . . . . . . . . . . . . . . . . . . . . . . . . . . . . . . Combat Hostiles . | . . . . . . . . . . . . . . . . . . . . . . . . . . . . . . . . . . . Robots Corrupted 21 | . . . . . . 1 1 . . . . . . . . . . . . 1 2 1 . 3 . . 8 . . 1 . 2 . 1 Combat Hostiles 20 | . . . . . . 1 1 . . . . . . . . . . . . 1 2 1 . 2 . . 8 . . 1 . 2 . 1 Parts Fried 39 | . . . . . . 3 1 . . . . . . . 1 . . . . 3 . . . 7 . . 15 . . . . . . 9 Impact Corruptions 26 | . . . . . . 3 . . . . . . . . . . . . . . 5 2 . 8 . . . 1 . 2 . 5 . . Robots Melted 16 | . . . 1 . 1 . 3 1 . . 1 . . . 1 . . . . 2 . . . 1 . . . 2 1 . . 2 . . Combat Hostiles 13 | . . . 1 . . . 3 1 . . . . . . 1 . . . . 2 . . . 1 . . . 2 1 . . 1 . . Parts Melted 87 | . . . 6 2 1 2 4 5 2 . 5 3 5 1 9 . 2 . . 15 . . . 1 1 6 . 6 2 . . 7 2 . Heat Transferred 47639 | . 50 250 2442 999 1813 1961 2270 1961 1377 . 4329 740 1369 999 4183 629 1675 . . 4586 . . . 975 975 3698 977 592 1221 222 296 1184 248 5618 Parts Sabotaged 3 | . . . . . . . . . . . . . . . . . . . . 3 . . . . . . . . . . . . . . Parts Stolen . | . . . . . . . . . . . . . . . . . . . . . . . . . . . . . . . . . . . Parts Stripped . | . . . . . . . . . . . . . . . . . . . . . . . . . . . . . . . . . . . Power Chain Reactions 9 | . 1 1 . . . . 1 . . . . . . . 2 . . . . 2 . . . . . . 2 . . . . . . . Alert | -11 -10 -10 -9 -9 -9 -8 -8 -8 -8 -7 -7 -7 -7 -6 -6 -6 -6 -5 -5 -4 -4 -3 -3 -3 -3 -3 -3 -2 -2 -1 -1 -1 -1 -1 ------- Run | Yrd Mat Min Mat Sto Gar Mat Gar Mat Gar Fac Gar Fac Gar Fac Gar Fac Gar Fac Gar Fac Gar Res Gar Res Qua Sec Gar Res Gar Acc Gar Acc Com Ac0 Maximum Alert Level 5 | . 1 . 1 . 2 1 3 2 4 3 3 2 2 1 3 2 3 2 3 2 3 3 3 2 . 1 4 3 5 4 5 3 2 . Low Security (%) 29 | 100 87 100 96 100 28 37 . . . . . 37 48 67 19 29 29 . . 30 . . . 25 100 96 4 . . . . . . . Level 1 18 | . 12 . 3 . 19 62 10 . . 14 34 32 20 32 11 22 5 65 24 61 8 . . 45 . 3 . . . . . . 23 . Level 2 27 | . . . . . 51 . 47 100 35 27 32 30 31 . 36 47 37 34 58 7 47 69 40 28 . . 16 . . . 9 44 76 . Level 3 16 | . . . . . . . 41 . 15 58 32 . . . 32 . 27 . 17 . 43 30 59 . . . 37 100 15 63 3 55 . . Level 4 5 | . . . . . . . . . 49 . . . . . . . . . . . . . . . . . 40 . 47 36 13 . . . Level 5 2 | . . . . . . . . . . . . . . . . . . . . . . . . . . . . . 37 . 73 . . . High Security . | . . . . . . . . . . . . . . . . . . . . . . . . . . . . . . . . . . . Max Security . | . . . . . . . . . . . . . . . . . . . . . . . . . . . . . . . . . . . Peak Influence 1851 | 5 237 98 211 111 647 336 1056 694 1512 799 931 488 595 320 1015 555 1021 452 706 614 1038 791 933 550 193 235 1472 1036 1851 1209 1819 1088 557 . Initial 1110 | . 3 25 35 81 46 315 213 514 435 793 254 488 111 312 73 532 . 404 302 370 427 583 533 524 151 5 174 778 777 1110 692 1088 486 . Average 496 | 1 138 28 97 67 375 235 664 571 998 652 564 266 286 148 508 330 490 395 564 268 662 633 772 307 65 44 962 881 1419 1031 1584 774 404 . Influence Increases 25575 | 10 490 244 685 200 601 525 1023 530 1177 440 967 357 654 596 1152 413 1694 178 484 1607 1146 368 400 1131 445 1023 1570 584 1224 356 1442 697 711 451 Destroy 0b10 Robot/C 10880 | . 280 180 380 120 280 280 520 340 600 220 360 140 240 180 380 180 520 60 140 780 540 140 . 520 140 500 700 260 640 180 480 420 180 . Destroy 0b10 Robot/NC 520 | 10 15 . 45 10 10 55 15 25 . . 45 20 5 15 30 5 10 . . 60 10 15 . 35 5 5 10 15 . 10 . 20 20 . Destroy Leader 1626 | . 56 40 130 20 30 120 30 94 30 10 30 42 20 50 30 30 30 10 20 172 30 30 . 142 30 80 60 30 30 30 40 80 50 . Allied During Kill 2397 | . . . . 4 . . 33 3 102 142 54 16 52 28 63 41 326 70 160 101 118 147 . 157 88 53 60 . 26 34 437 30 52 . Trap Triggered on 0b10 40 | . . 20 . . 10 10 . . . . . . . . . . . . . . . . . . . . . . . . . . . . Successful Hack 595 | . 12 . 60 . 44 14 . 4 . 46 23 5 7 81 12 8 22 . 10 37 8 . . 21 78 38 12 24 15 . 10 . 4 . Select Force Hacks 60 | . 60 . . . . . . . . . . . . . . . . . . . . . . . . . . . . . . . . . Disable Machine 1350 | . . . 45 45 15 . 15 15 15 . 45 90 15 180 45 90 45 30 . 120 60 . . 30 60 120 30 45 . 30 15 15 60 75 Anti-Garrison Action 4450 | . . . . . 150 . 350 . 400 . 400 . 300 . 550 . 700 . 150 . 350 . 400 . . . 250 . 250 . 200 . . . Destroy Structure 2757 | . 7 4 10 1 17 16 60 19 30 7 10 14 15 62 12 44 26 8 4 262 30 36 . 106 44 182 313 120 173 72 215 117 345 376 Partial Spotted 30 | . . . . . . . . . . . . . . . . . . . . 15 . . . . . . . . 15 . . . . . Lose Combat Pursuer 870 | . 60 . 15 . 45 30 . 30 . 15 . 30 . . 30 15 15 . . 60 . . . 120 . 45 135 90 75 . 45 15 . . Influence Decreases 25274 | 5 428 221 580 324 25 844 295 916 335 1588 400 1129 218 1086 242 1428 923 517 210 1702 719 695 178 1794 705 800 419 932 409 1341 494 1750 977 645 Entered New Map 9098 | . 2 42 55 114 25 332 115 542 235 719 110 443 48 283 32 483 . 367 130 336 184 455 178 409 119 5 59 606 259 741 174 726 275 495 Time Decay 7810 | 5 406 139 505 180 . 502 . 374 . 254 . 294 . 492 . 492 . 110 . 696 . 180 . 705 410 534 . 326 . 350 . 464 392 . Lost Part 920 | . 20 40 20 10 . 10 40 . . . 20 . 10 10 . . 10 . . 150 70 . . 160 10 50 60 . 10 10 . 50 10 150 Lost Ally 5101 | . . . . 20 . . 140 . 100 240 270 130 160 151 210 200 463 40 80 370 190 60 . 370 36 211 300 . 140 90 320 510 300 . Purge Threat 2345 | . . . . . . . . . . 375 . 262 . 150 . 253 450 . . 150 275 . . 150 130 . . . . 150 . . . . Squads Dispatched 90 | . 4 . 1 3 . 3 . 2 . 3 . 5 . 8 . 4 . 1 . 13 . 3 . 6 9 11 . 2 . 1 . 7 4 . Investigation 7 | . 3 . . . . . . . . . . . . . . 1 . . . 1 . 1 . . 1 . . . . . . . . . Extermination 39 | . . . . . . . . . . . . 1 . 4 . 2 . . . 7 . 1 . 5 4 5 . 2 . 1 . 4 3 . Reinforcement 25 | . 1 . 1 . . 1 . 2 . 1 . 4 . 1 . 1 . 1 . 3 . 1 . . 1 6 . . . . . . 1 . Assault 9 | . . . . 2 . . . . . 1 . . . . . . . . . 2 . . . 1 . . . . . . . 3 . . Garrison 10 | . . . . 1 . 2 . . . 1 . . . 3 . . . . . . . . . . 3 . . . . . . . . . Intercept . | . . . . . . . . . . . . . . . . . . . . . . . . . . . . . . . . . . . Searches Triggered . | . . . . . . . . . . . . . . . . . . . . . . . . . . . . . . . . . . . Unchained Authorized 6 | . . . . . . . . . . . . . . . . . . . . 1 . 1 . 1 . . . 1 . 1 . 1 . . Construction Impeded 3 | . . . . . . . . . . . . . . . . . . 1 . . . 1 . . . 1 . . . . . . . . Haulers Reinforced 1 | . . . . . . . . . . . . . . . . . . . . 1 . . . . . . . . . . . . . . Active Scanning Responses . | . . . . . . . . . . . . . . . . . . . . . . . . . . . . . . . . . . . Cargo Convoy Interrupts 1 | . . . . . . . . . . . . 1 . . . . . . . . . . . . . . . . . . . . . . Alert ID Control Effect 212 | . . . . . . . . . . . 1 3 9 12 9 6 10 6 13 11 6 2 . 4 14 29 6 . 10 1 25 10 25 . Stealth | -11 -10 -10 -9 -9 -9 -8 -8 -8 -8 -7 -7 -7 -7 -6 -6 -6 -6 -5 -5 -4 -4 -3 -3 -3 -3 -3 -3 -2 -2 -1 -1 -1 -1 -1 --------- Run | Yrd Mat Min Mat Sto Gar Mat Gar Mat Gar Fac Gar Fac Gar Fac Gar Fac Gar Fac Gar Fac Gar Res Gar Res Qua Sec Gar Res Gar Acc Gar Acc Com Ac0 Distress Signals 52 | . 2 . 2 . . 1 . 2 . 1 . 2 . 2 . 1 . . . 6 . . . 3 1 2 . . . . . 1 26 . Communications Jammed 242 | . . . . . . . . . . . . . . . . . . . . 78 . . . 8 33 11 . 4 . 8 . 100 . . Distress Signals 239 | . . . . . . . . . . . . . . . . . . . . 77 . . . 8 31 11 . 4 . 8 . 100 . . Times Spotted 1068 | . 20 12 26 16 13 27 28 28 39 12 31 23 35 27 40 24 57 7 22 79 48 8 . 59 22 47 54 26 51 12 57 47 40 31 Peak Tracking Total 14 | . 7 5 5 10 4 4 3 5 8 4 5 5 7 4 8 3 8 5 3 5 5 3 . 3 4 5 10 7 8 5 14 6 7 4 Tactical Retreats 39 | . 2 . 1 . 3 1 . 2 . 1 . 1 . . 1 1 1 . . 2 . . . 8 . 2 4 2 4 . 2 1 . . Traps | -11 -10 -10 -9 -9 -9 -8 -8 -8 -8 -7 -7 -7 -7 -6 -6 -6 -6 -5 -5 -4 -4 -3 -3 -3 -3 -3 -3 -2 -2 -1 -1 -1 -1 -1 ------- Run | Yrd Mat Min Mat Sto Gar Mat Gar Mat Gar Fac Gar Fac Gar Fac Gar Fac Gar Fac Gar Fac Gar Res Gar Res Qua Sec Gar Res Gar Acc Gar Acc Com Ac0 Traps Triggered 86 | . 2 . . . . . 8 . 9 . 2 1 5 3 5 3 8 . 1 4 10 . 1 1 . 1 10 2 5 . 2 1 2 . Indirectly . | . . . . . . . . . . . . . . . . . . . . . . . . . . . . . . . . . . . Trap Hack Attempts . | . . . . . . . . . . . . . . . . . . . . . . . . . . . . . . . . . . . Triggered . | . . . . . . . . . . . . . . . . . . . . . . . . . . . . . . . . . . . Disarmed 6 | . . . . . . . . . . . . . . . . . . . . . . . . . 6 . . . . . . . . . Reprogrammed . | . . . . . . . . . . . . . . . . . . . . . . . . . . . . . . . . . . . Reused 4 | . . 2 . . 1 1 . . . . . . . . . . . . . . . . . . . . . . . . . . . . Traps Extracted . | . . . . . . . . . . . . . . . . . . . . . . . . . . . . . . . . . . . Installed 6 | . . 3 . . 2 1 . . . . . . . . . . . . . . . . . . . . . . . . . . . . Triggered 4 | . . 2 . . 1 1 . . . . . . . . . . . . . . . . . . . . . . . . . . . . Most Traps Carried 2 | . . 1 . . 2 1 . . . . . . . . . . . . . . . . . . . . . . . . . . . . Machines | -11 -10 -10 -9 -9 -9 -8 -8 -8 -8 -7 -7 -7 -7 -6 -6 -6 -6 -5 -5 -4 -4 -3 -3 -3 -3 -3 -3 -2 -2 -1 -1 -1 -1 -1 ---------- Run | Yrd Mat Min Mat Sto Gar Mat Gar Mat Gar Fac Gar Fac Gar Fac Gar Fac Gar Fac Gar Fac Gar Res Gar Res Qua Sec Gar Res Gar Acc Gar Acc Com Ac0 Machines Disabled 146 | . . . 3 3 4 . 5 1 7 . 9 6 5 12 9 6 9 2 3 8 9 . 3 2 4 8 5 3 3 2 5 1 4 5 Max in Single Turn 5 | . . . 1 1 1 . 1 1 1 . 1 5 1 . 1 1 1 . 1 2 1 . 1 . 1 1 1 1 1 1 1 1 1 1 Garrison Access 5 | . . . . . . . . . . . . 1 . . . . . . . 1 . . . 1 1 . . . . 1 . . . . Garrison Relay 54 | . . . . . 3 . 1 . 5 . 6 . 4 . 7 . 6 . 3 . 5 . 3 . . . 3 . 4 . 4 . . . Phase Generator 2 | . . . . . . . 1 . 1 . . . . . . . . . . . . . . . . . . . . . . . . . Energy Cycler 1 | . . . . . . . . . . . . . . . . . . . . . . . . . . . . . . . . 1 . . Machines Repaired . | . . . . . . . . . . . . . . . . . . . . . . . . . . . . . . . . . . . Machines Dismantled 6 | . . . . 2 . . 1 . 1 . . . . . 1 . 1 . . . . . . . . . . . . . . . . . Machines Sabotaged . | . . . . . . . . . . . . . . . . . . . . . . . . . . . . . . . . . . . Overloaded Fab Kills . | . . . . . . . . . . . . . . . . . . . . . . . . . . . . . . . . . . . Hacking | -11 -10 -10 -9 -9 -9 -8 -8 -8 -8 -7 -7 -7 -7 -6 -6 -6 -6 -5 -5 -4 -4 -3 -3 -3 -3 -3 -3 -2 -2 -1 -1 -1 -1 -1 --------- Run | Yrd Mat Min Mat Sto Gar Mat Gar Mat Gar Fac Gar Fac Gar Fac Gar Fac Gar Fac Gar Fac Gar Res Gar Res Qua Sec Gar Res Gar Acc Gar Acc Com Ac0 Machines Accessed 141 | . 8 . 5 4 3 6 3 3 3 4 5 6 2 16 4 9 2 2 1 8 2 2 2 7 9 11 2 4 2 3 1 . 2 . Terminals 91 | . 6 . 4 3 3 5 3 . 3 . 5 1 2 10 4 4 2 . 1 2 2 1 2 4 6 8 2 2 2 1 1 . 2 . Fabricators 10 | . . . . . . . . . . 1 . 1 . 2 . 2 . 1 . 2 . . . . . . . 1 . . . . . . Repair Stations 8 | . . . . . . . . 2 . . . 1 . 2 . 2 . . . 1 . . . . . . . . . . . . . . Recycling Units 3 | . 2 . . . . . . . . 1 . . . . . . . . . . . . . . . . . . . . . . . . Scanalyzers 12 | . . . 1 . . . . . . 1 . 1 . 1 . . . . . 2 . . . 2 2 2 . . . . . . . . Garrison Access 17 | . . . . 1 . 1 . 1 . 1 . 2 . 1 . 1 . 1 . 1 . 1 . 1 1 1 . 1 . 2 . . . . Total Hacks 302 | . 19 . 20 8 6 15 5 5 4 6 10 10 3 46 9 23 4 3 2 20 4 3 4 14 16 19 5 8 4 3 2 . 2 . Successful 155 | . 6 . 11 4 3 7 1 5 . 5 3 4 1 33 1 16 2 1 1 10 1 1 1 9 9 10 1 3 2 2 1 . 1 . Failed 146 | . 12 . 9 4 3 8 4 . 4 1 7 6 2 13 8 7 2 2 1 10 3 2 3 5 7 9 4 5 2 1 1 . 1 . Catastrophic 32 | . 2 . 1 . 1 2 1 . 2 1 3 1 1 3 2 . 1 . . 2 1 1 . . . 2 3 . 1 1 . . . . Database Lockouts 1 | . 1 . . . . . . . . . . . . . . . . . . . . . . . . . . . . . . . . . Manual 127 | . 18 . 14 4 1 10 . . 1 3 4 7 . 24 . 9 1 2 1 10 . 2 . 2 4 4 1 3 1 . . . 1 . Terminals 203 | . 17 . 17 5 6 14 5 . 4 . 10 3 3 30 9 10 4 . 2 4 4 2 4 6 11 14 5 5 4 1 2 . 2 . Fabricators 28 | . . . . . . . . . . 3 . 2 . 6 . 7 . 2 . 6 . . . . . . . 2 . . . . . . Repair Stations 17 | . . . . . . . . 4 . . . 2 . 4 . 5 . . . 2 . . . . . . . . . . . . . . Recycling Units 3 | . 2 . . . . . . . . 1 . . . . . . . . . . . . . . . . . . . . . . . . Scanalyzers 30 | . . . 3 . . . . . . 1 . 1 . 5 . . . . . 7 . . . 6 3 4 . . . . . . . . Garrison Access 21 | . . . . 3 . 1 . 1 . 1 . 2 . 1 . 1 . 1 . 1 . 1 . 2 2 1 . 1 . 2 . . . . Terminal Hacks 53 | . 3 . 4 . 3 1 1 . . . 3 . 1 10 1 2 2 . 1 . 1 . 1 2 4 6 1 2 2 . 1 . 1 . Part Schematic 1 | . 1 . . . . . . . . . . . . . . . . . . . . . . . . . . . . . . . . . Robot Analysis 1 | . 1 . . . . . . . . . . . . . . . . . . . . . . . . . . . . . . . . . Open Door 10 | . . . . . . . 1 . . . 1 . 1 . . . . . . . 1 . . . . 4 . . 1 . . . 1 . Branch Access Points 3 | . . . 1 . . . . . . . . . . 1 . . . . . . . . . 1 . . . . . . . . . . Emergency Access Points 8 | . . . . . 1 . . . . . 1 . . . 1 . 1 . . . . . 1 . . . 1 . 1 . 1 . . . Terminal Index 4 | . . . 1 . . . . . . . . . . 1 . . . . . . . . . . 1 1 . . . . . . . . Garrison Index 1 | . . . . . . . . . . . . . . . . . . . . . . . . . . . . 1 . . . . . . Unreport Threat 3 | . . . . . . . . . . . . . . 1 . 1 . . . . . . . 1 . . . . . . . . . . Locate Traps 3 | . 1 . . . . . . . . . . . . 1 . . . . . . . . . . . . . 1 . . . . . . Disarm Traps 1 | . . . . . . . . . . . . . . . . . . . . . . . . . 1 . . . . . . . . . Recall Extermination 1 | . . . . . . . . . . . . . . 1 . . . . . . . . . . . . . . . . . . . . Hauler Manifests 2 | . . . . . . . . . . . . . . 1 . 1 . . . . . . . . . . . . . . . . . . Registered Components 2 | . . . 1 . . . . . . . . . . . . . . . . . . . . . 1 . . . . . . . . . Registered Prototypes 1 | . . . . . . . . . . . . . . . . . . . . . . . . . 1 . . . . . . . . . Zone Layout 7 | . . . 1 . . 1 . . . . . . . 4 . . . . . . . . . . . 1 . . . . . . . . Garrison Registry 2 | . . . . . 1 . . . . . . . . . . . . . 1 . . . . . . . . . . . . . . . Patrol Navigation 1 | . . . . . . . . . . . . . . . . . 1 . . . . . . . . . . . . . . . . . Security Stations 2 | . . . . . 1 . . . . . 1 . . . . . . . . . . . . . . . . . . . . . . . Fabricator Hacks 6 | . . . . . . . . . . 1 . . . 1 . 3 . . . 1 . . . . . . . . . . . . . . Network Status 4 | . . . . . . . . . . 1 . . . 1 . 1 . . . 1 . . . . . . . . . . . . . . Load Schematic 1 | . . . . . . . . . . . . . . . . 1 . . . . . . . . . . . . . . . . . . Build 1 | . . . . . . . . . . . . . . . . 1 . . . . . . . . . . . . . . . . . . Repair Station Hacks 9 | . . . . . . . . 4 . . . . . 1 . 4 . . . . . . . . . . . . . . . . . . Scan Component 5 | . . . . . . . . 2 . . . . . 1 . 2 . . . . . . . . . . . . . . . . . . Repair 4 | . . . . . . . . 2 . . . . . . . 2 . . . . . . . . . . . . . . . . . . Recycling Unit Hacks . | . . . . . . . . . . . . . . . . . . . . . . . . . . . . . . . . . . . Scanalyzer 16 | . . . 2 . . . . . . 1 . . . 4 . . . . . 3 . . . 4 . 2 . . . . . . . . Insert Component 7 | . . . 1 . . . . . . . . . . 1 . . . . . 2 . . . 1 . 2 . . . . . . . . Analyze 4 | . . . . . . . . . . . . . . 2 . . . . . . . . . 2 . . . . . . . . . . Retrieve Study 5 | . . . 1 . . . . . . 1 . . . 1 . . . . . 1 . . . 1 . . . . . . . . . . Garrison Access Hacks 19 | . . . . 1 . 1 . 1 . 1 . 2 . 1 . 1 . 1 . 1 . 1 . 2 2 1 . 1 . 2 . . . . Unlock Access 13 | . . . . 1 . 1 . 1 . 1 . 1 . 1 . 1 . 1 . 1 . 1 . . . 1 . 1 . 1 . . . . Seal Access 4 | . . . . . . . . . . . . 1 . . . . . . . . . . . 1 1 . . . . 1 . . . . Coupler Status 2 | . . . . . . . . . . . . . . . . . . . . . . . . 1 1 . . . . . . . . . Unauthorized Hacks 52 | . 3 . 5 3 . 5 . . . 2 . 2 . 16 . 6 . . . 5 . . . 1 3 1 . . . . . . . . Terminals 34 | . 1 . 5 3 . 5 . . . . . 1 . 12 . 2 . . . 1 . . . 1 2 1 . . . . . . . . Track 4 | . . . 1 . . 1 . . . . . . . 1 . . . . . . . . . . . 1 . . . . . . . . Assimilate 6 | . . . . . . 2 . . . . . . . 2 . . . . . 1 . . . . 1 . . . . . . . . . Botnet 11 | . 1 . 2 1 . 1 . . . . . 1 . 2 . 1 . . . . . . . 1 1 . . . . . . . . . Detonate 1 | . . . 1 . . . . . . . . . . . . . . . . . . . . . . . . . . . . . . . Operators 5 | . . . 1 1 . 1 . . . . . . . 1 . 1 . . . . . . . . . . . . . . . . . . Skim 7 | . . . . 1 . . . . . . . . . 6 . . . . . . . . . . . . . . . . . . . . Fabricators 11 | . . . . . . . . . . 2 . 1 . 3 . 3 . . . 2 . . . . . . . . . . . . . . Report 1 | . . . . . . . . . . . . . . . . 1 . . . . . . . . . . . . . . . . . . Prioritize 1 | . . . . . . . . . . . . . . 1 . . . . . . . . . . . . . . . . . . . . Liberate 4 | . . . . . . . . . . 1 . . . 1 . 1 . . . 1 . . . . . . . . . . . . . . Haulers 5 | . . . . . . . . . . 1 . 1 . 1 . 1 . . . 1 . . . . . . . . . . . . . . Repair Stations 4 | . . . . . . . . . . . . . . 1 . 1 . . . 2 . . . . . . . . . . . . . . Mechanics 3 | . . . . . . . . . . . . . . 1 . 1 . . . 1 . . . . . . . . . . . . . . Patch 1 | . . . . . . . . . . . . . . . . . . . . 1 . . . . . . . . . . . . . . Recycling Units 2 | . 2 . . . . . . . . . . . . . . . . . . . . . . . . . . . . . . . . . Tunnel 2 | . 2 . . . . . . . . . . . . . . . . . . . . . . . . . . . . . . . . . Scanalyzers 1 | . . . . . . . . . . . . . . . . . . . . . . . . . 1 . . . . . . . . . Researchers 1 | . . . . . . . . . . . . . . . . . . . . . . . . . 1 . . . . . . . . . Garrison Access . | . . . . . . . . . . . . . . . . . . . . . . . . . . . . . . . . . . . Data Cores Recovered 2 | . . . . . . 1 . . . . . . . 1 . . . . . . . . . . . . . . . . . . . . Used 1 | . . . . . . 1 . . . . . . . . . . . . . . . . . . . . . . . . . . . . Hacking Detections 114 | . 6 . 5 4 2 5 2 1 3 2 4 5 2 15 4 5 2 1 1 6 1 2 2 6 8 8 2 4 2 2 1 . 1 . Full Trace Events 7 | . . . . 1 . . 1 . . . . . . . 1 1 . . . . . 1 1 . 1 . . . . . . . . . Feedback Events 1 | . . . . . . . . . . . . . . . . . . . . . . . . . 1 . . . . . . . . . Corruption 1 | . . . . . . . . . . . . . . . . . . . . . . . . . 1 . . . . . . . . . Feedback Blocked . | . . . . . . . . . . . . . . . . . . . . . . . . . . . . . . . . . . . Robot Schematics Acquired 57 | . . . . . . . . . . . . . . . . . . . . . . . . 54 1 2 . . . . . . . . Robots Built . | . . . . . . . . . . . . . . . . . . . . . . . . . . . . . . . . . . . Authchips . | . . . . . . . . . . . . . . . . . . . . . . . . . . . . . . . . . . . Time . | . . . . . . . . . . . . . . . . . . . . . . . . . . . . . . . . . . . Total Robot Build Rating . | . . . . . . . . . . . . . . . . . . . . . . . . . . . . . . . . . . . Part Schematics Acquired 17 | . 1 . . . . . . . . . . . . 1 . . . . . . . . . . 9 6 . . . . . . . . Parts Built 1 | . . . . . . . . . . . . . . . . 1 . . . . . . . . . . . . . . . . . . Authchips . | . . . . . . . . . . . . . . . . . . . . . . . . . . . . . . . . . . . Time 152 | . . . . . . . . . . . . . . . . 152 . . . . . . . . . . . . . . . . . . Total Part Build Rating 5 | . . . . . . . . . . . . . . . . 5 . . . . . . . . . . . . . . . . . . Part Studies Acquired 5 | . . . 1 . . . . . . 1 . . . 1 . . . . . 1 . . . 1 . . . . . . . . . . Parts Repaired 4 | . . . . . . . . 2 . . . . . . . 2 . . . . . . . . . . . . . . . . . . Time 216 | . . . . . . . . 76 . . . . . . . 140 . . . . . . . . . . . . . . . . . . Parts Recycled . | . . . . . . . . . . . . . . . . . . . . . . . . . . . . . . . . . . . Recycled Matter . | . . . . . . . . . . . . . . . . . . . . . . . . . . . . . . . . . . . Retrieved Matter . | . . . . . . . . . . . . . . . . . . . . . . . . . . . . . . . . . . . Retrieved Components . | . . . . . . . . . . . . . . . . . . . . . . . . . . . . . . . . . . . Parts Scanalyzed 3 | . . . . . . . . . . . . . . 1 . . . . . 1 . . . 1 . . . . . . . . . . Part Schematics Acquired 1 | . . . . . . . . . . . . . . 1 . . . . . . . . . . . . . . . . . . . . Parts Damaged 1 | . . . . . . . . . . . . . . . . . . . . 1 . . . . . . . . . . . . . . Bothacking | -11 -10 -10 -9 -9 -9 -8 -8 -8 -8 -7 -7 -7 -7 -6 -6 -6 -6 -5 -5 -4 -4 -3 -3 -3 -3 -3 -3 -2 -2 -1 -1 -1 -1 -1 ------------ Run | Yrd Mat Min Mat Sto Gar Mat Gar Mat Gar Fac Gar Fac Gar Fac Gar Fac Gar Fac Gar Fac Gar Res Gar Res Qua Sec Gar Res Gar Acc Gar Acc Com Ac0 Used RIF Installer 13 | . . . . . 1 . 1 . 1 . 1 . 1 . 1 . 1 . 1 . 1 . 1 . . . 1 . 1 . 1 . . . Coupler Efficiency 2 | . . . . . . . 1 . . . . . 1 . . . . . . . . . . . . . . . . . . . . . Command Fork 3 | . . . . . . . . . . . . . . . . . . . 1 . . . 1 . . . . . . . 1 . . . Signal Jammer 1 | . . . . . . . . . . . . . . . . . 1 . . . . . . . . . . . . . . . . . Robot Detection 1 | . . . . . . . . . . . . . . . 1 . . . . . . . . . . . . . . . . . . . Watcher Feeds 1 | . . . . . . . . . . . . . . . . . . . . . . . . . . . 1 . . . . . . . Alert ID Control 1 | . . . . . . . . . . . 1 . . . . . . . . . . . . . . . . . . . . . . . Structural Interface 1 | . . . . . . . . . 1 . . . . . . . . . . . . . . . . . . . . . . . . . Autooverride 1 | . . . . . . . . . . . . . . . . . . . . . . . . . . . . . 1 . . . . . Autoassimilate 1 | . . . . . . . . . . . . . . . . . . . . . 1 . . . . . . . . . . . . . Robots Hacked 314 | . . . . . . . . 2 11 8 22 10 17 5 15 13 30 3 8 28 21 6 . 12 13 12 5 1 14 4 20 19 15 . Non-combat 50 | . . . . . . . . . . 3 . 3 . 1 . 2 1 . . 16 1 2 . 5 4 2 . 1 . 4 . 4 1 . Combat 264 | . . . . . . . . 2 11 5 22 7 17 4 15 11 29 3 8 12 20 4 . 7 9 10 5 . 14 . 20 15 14 . Autooverrided 10 | . . . . . . . . . . . . . . . . . . . . . . . . . . . . . 2 . 2 3 3 . Autoassimilated 20 | . . . . . . . . . . . . . . . . . . . . . . 1 . 1 1 3 1 . 4 . 4 2 3 . Robot Hacks Applied 315 | . . . . . . . . 2 12 12 23 13 17 5 15 16 34 3 8 31 23 6 . 12 13 10 4 2 9 4 15 15 11 . parse_system 21 | . . . . . . . . . 1 . 2 . 2 . . 1 2 . . . 2 . . 2 1 1 . . 1 . 2 2 2 . find_chute 1 | . . . . . . . . . . 1 . . . . . . . . . . . . . . . . . . . . . . . . deconstruct_machine 3 | . . . . . . . . . . . . . . . . . . . . 2 . . . . . 1 . . . . . . . . ignore_repairs 7 | . . . . . . . . . . . . . . . . 1 . . . 3 . 1 . . 1 1 . . . . . . . . find_fabricator 3 | . . . . . . . . . . 1 . 1 . . . . . . . . . . . . . . . 1 . . . . . . drop_inventory 12 | . . . . . . . . . . 1 . 2 . 1 . . . . . 2 . . . 2 1 . . 1 . 1 . 1 . . recall_reinforcements 1 | . . . . . . . . . . . . . . . . . . . . 1 . . . . . . . . . . . . . . ignore_parts 6 | . . . . . . . . . . . . . . . . . . . . 4 . . . 2 . . . . . . . . . . find_station 1 | . . . . . . . . . . . . . . . . . . . . . . 1 . . . . . . . . . . . . purge_threat 15 | . . . . . . . . . . 3 . 2 . . . 1 4 . . 1 2 . . . 1 . . . . 1 . . . . reprogram_traps 2 | . . . . . . . . . . . . . . . . 2 . . . . . . . . . . . . . . . . . . map_route 6 | . . . . . . . . . . . . . . . . . . . . 2 . . . . . . . . . 1 . 3 . . emergency_deploy 2 | . . . . . . . . . . . . . . . . . . . . 1 . . . . . . . . . . . 1 . . find_garrison 1 | . . . . . . . . . . . . . . . . . . . . 1 . . . . . . . . . . . . . . scatter_targeting 3 | . . . . . . . . . . . . . . . . . 1 . . 1 1 . . . . . . . . . . . . . disrupt_area 1 | . . . . . . . . . . . . . . . 1 . . . . . . . . . . . . . . . . . . . amplify_resonance 19 | . . . . . . . . . 2 . 2 4 1 . 1 . 1 . . 1 3 1 . . 1 . 1 . . . 1 . . . wipe_record 1 | . . . . . . . . . . . . . . 1 . . . . . . . . . . . . . . . . . . . . reboot_system 15 | . . . . . . . . . . . 3 . 1 1 1 1 1 . . 2 3 . . . . . . . 1 . 1 . . . overwrite_iff 49 | . . . . . . . . . . 1 9 1 2 1 5 4 8 3 3 2 4 . . . 1 . . . . . 4 . 1 . formatsys_low 14 | . . . . . . . . . . 1 . 1 . . . 1 1 . . 2 1 1 . . 3 1 . . . 1 . . 1 . formatsys_high 129 | . . . . . . . . 2 9 4 7 2 11 1 7 5 16 . 5 6 7 2 . 5 4 6 3 . 6 . 7 7 7 . formatsys_deep 3 | . . . . . . . . . . . . . . . . . . . . . . . . 1 . . . . 1 . . 1 . . Relay Couplers Released 232 | . . . . . 12 . 4 . 27 . 28 . 15 . 26 . 22 . 12 2 22 . 15 . 1 . 11 . 15 2 18 . . . Machine Destruction 225 | . . . . . 12 . 4 . 23 . 25 . 15 . 26 . 22 . 12 2 22 . 15 . 1 . 11 . 15 2 18 . . . Programmers 7 | . . . . . . . . . 4 . 3 . . . . . . . . . . . . . . . . . . . . . . . Attached 113 | . . . . . . 1 . 1 6 4 7 2 5 3 6 4 13 . 4 8 9 1 2 4 5 1 4 2 5 1 6 3 6 . Fabnet Peak Effective % . | . . . . . . . . . . . . . . . . . . . . . . . . . . . . . . . . . . . Robots Rewired 74 | . . . . . . . 5 . 9 . 5 . . . 6 . 14 . . . 2 . 12 . . . 9 . . . 12 . . . Allies Hacked 16 | . . . . . . . . . . . . . 1 . . . 1 . . . . . . 6 . 4 1 . 1 1 . . 1 . Hacks Repelled . | . . . . . . . . . . . . . . . . . . . . . . . . . . . . . . . . . . . Allies | -11 -10 -10 -9 -9 -9 -8 -8 -8 -8 -7 -7 -7 -7 -6 -6 -6 -6 -5 -5 -4 -4 -3 -3 -3 -3 -3 -3 -2 -2 -1 -1 -1 -1 -1 -------- Run | Yrd Mat Min Mat Sto Gar Mat Gar Mat Gar Fac Gar Fac Gar Fac Gar Fac Gar Fac Gar Fac Gar Res Gar Res Qua Sec Gar Res Gar Acc Gar Acc Com Ac0 Total Allies 357 | . . . . 2 . . 7 2 18 6 21 4 16 7 20 10 41 3 8 13 15 4 14 11 15 10 15 . 17 1 35 22 20 . Largest Group 18 | . . . . 2 . . 4 2 8 13 5 3 7 7 8 6 15 14 18 13 5 6 17 17 11 13 8 . 7 6 12 9 11 . Highest-Rated Group 1505 | . . . . 62 . . 83 30 128 250 124 60 318 318 218 159 626 585 725 559 257 433 847 847 818 929 533 . 414 355 748 689 1505 . Highest-Rated Ally 344 | . . . . 31 . . 40 15 21 32 32 20 95 90 41 41 99 89 89 89 119 119 95 95 344 344 95 . 148 64 219 219 219 . Total Orders 189 | . . . . . . . . 2 10 2 15 . 5 7 3 1 19 . 1 15 3 9 1 34 9 7 . . 7 3 12 . 24 . STAY 97 | . . . . . . . . 2 6 1 7 . 3 3 3 . 13 . 1 . 3 3 . 24 2 2 . . 4 . 6 . 14 . ROAM 1 | . . . . . . . . . . . . . . . . 1 . . . . . . . . . . . . . . . . . . FOLLOW 59 | . . . . . . . . . 4 1 8 . 2 4 . . 6 . . 2 . 3 . 9 2 2 . . 3 . 6 . 7 . AID 15 | . . . . . . . . . . . . . . . . . . . . . . 3 1 1 4 3 . . . . . . 3 . DROP 1 | . . . . . . . . . . . . . . . . . . . . . . . . . 1 . . . . . . . . . EXPLORE 11 | . . . . . . . . . . . . . . . . . . . . 9 . . . . . . . . . 2 . . . . RETURN 5 | . . . . . . . . . . . . . . . . . . . . 4 . . . . . . . . . 1 . . . . Ally Attacks 1852 | . . . . 14 . . 36 3 67 58 70 28 48 62 84 75 157 31 82 72 60 42 . 128 70 125 64 . 63 17 159 74 163 . Total Damage 65173 | . . . . 211 . . 415 31 1194 1010 1391 354 1027 2430 2163 2375 4079 922 2711 2481 967 1692 . 3747 2377 5660 2541 . 2427 383 5551 2766 14268 . Kills 383 | . . . . 2 . . 5 1 18 11 11 3 14 14 12 13 32 9 21 17 14 9 . 14 16 30 11 . 12 1 39 11 43 . Allies Corrupted 27 | . . . . . . . . . . . . . 1 . . . . . . . . . . 4 . 4 6 . . 1 1 7 3 . Allies Melted 5 | . . . . . . . . . . . . 1 . . 1 1 1 . . . . . . 1 . . . . . . . . . . Intel | -11 -10 -10 -9 -9 -9 -8 -8 -8 -8 -7 -7 -7 -7 -6 -6 -6 -6 -5 -5 -4 -4 -3 -3 -3 -3 -3 -3 -2 -2 -1 -1 -1 -1 -1 ------- Run | Yrd Mat Min Mat Sto Gar Mat Gar Mat Gar Fac Gar Fac Gar Fac Gar Fac Gar Fac Gar Fac Gar Res Gar Res Qua Sec Gar Res Gar Acc Gar Acc Com Ac0 Active Infowar (turns) 16920 | 9 1050 . 182 . . 1122 . 556 . 116 . . . . . . 187 . . . . . . 40 890 2590 1626 721 1567 798 949 1168 2451 898 Optics 13191 | . . . . . . . . . . . . . . . . . . . . . . . . . 423 2590 1626 721 1567 798 949 1168 2451 898 Sensors 2 | . . . . . . . . . . . . . . . . . . . . . . . . 2 . . . . . . . . . . Zeronet 505 | . . . . . . . . . . . . . . . . . . . . . . . . 38 467 . . . . . . . . . Terrain 961 | . . . . . . . . . . . . . . . . . . . . . . . . . . . . . . . . 697 . 264 Structural 309 | . . . 48 . . 145 . . . 116 . . . . . . . . . . . . . . . . . . . . . . . . Seismic 2365 | 9 1050 . 182 . . 1122 . . . . . . . . . . . . . . . . . . . . . 2 . . . . . . Machine Analysis 556 | . . . . . . . . 556 . . . . . . . . . . . . . . . . . . . . . . . . . . Jamming 187 | . . . . . . . . . . . . . . . . . 187 . . . . . . . . . . . . . . . . . Robot Analysis Total 101 | . 1 . . . . . . . . . . . . . . . . . . . . . . 100 . . . . . . . . . . Derelict Logs Recovered 1 | . . 1 . . . . . . . . . . . . . . . . . . . . . . . . . . . . . . . . Drone Launches 10 | . . . . . . . . . . . . . . . . . . . . 8 . . . . . . . . . 2 . . . . Drone Recoveries 9 | . . . . . . . . . . . . . . . . . . . . 7 . . . . . . . . . 2 . . . . Exploration | -11 -10 -10 -9 -9 -9 -8 -8 -8 -8 -7 -7 -7 -7 -6 -6 -6 -6 -5 -5 -4 -4 -3 -3 -3 -3 -3 -3 -2 -2 -1 -1 -1 -1 -1 ------------- Run | Yrd Mat Min Mat Sto Gar Mat Gar Mat Gar Fac Gar Fac Gar Fac Gar Fac Gar Fac Gar Fac Gar Res Gar Res Qua Sec Gar Res Gar Acc Gar Acc Com Ac0 Turns Passed 45823 | 96 1130 459 1363 376 1068 1346 1866 876 1629 549 1669 789 1214 1469 1843 1525 2359 236 874 2906 1544 374 842 3085 1565 2590 1626 721 1567 798 949 1168 2451 901 Spaces Moved 24886 | 46 612 206 621 146 548 630 980 371 838 296 919 445 608 699 922 895 1386 134 449 1442 677 220 572 1391 1021 1418 1053 505 871 597 673 705 1657 333 Core 9 | 2 . . . . . . . . . . . . . . . . . . . . . . . . . . . . . . . . . 7 Treads 3049 | . 236 196 553 90 267 59 13 . . . . . 113 256 10 . . . 234 667 . . . 355 . . . . . . . . . . Legs 6997 | 44 376 10 68 . . . . . . . . . . . . . . . . . . . . . . 130 1050 505 871 597 673 698 1649 326 Wheels 14432 | . . . . 56 281 571 967 371 838 296 919 445 495 443 912 895 1386 134 215 775 677 220 572 1036 1021 907 . . . . . . . . Hover 371 | . . . . . . . . . . . . . . . . . . . . . . . . . . 371 . . . . . . . . Flight . | . . . . . . . . . . . . . . . . . . . . . . . . . . . . . . . . . . . Fastest Speed 50 | 50 120 160 120 145 150 150 145 145 135 150 120 150 150 150 135 135 135 150 135 152 165 131 115 115 126 96 114 111 110 111 111 114 108 50 Average Speed 141 | 116 135 161 155 156 154 158 147 151 148 150 136 150 166 182 150 144 141 150 160 159 167 137 130 139 127 141 114 111 123 112 112 121 125 123 Slowest Speed 380 | 120 160 240 160 240 160 240 240 210 150 150 165 150 240 240 240 150 150 150 240 232 180 141 131 165 141 270 115 115 222 222 114 248 380 126 Overloaded Moves 92 | . . . . . . . . . . . . . . . . . . . . . . . . . . . . . 70 4 . 11 7 . Propulsion Burnouts . | . . . . . . . . . . . . . . . . . . . . . . . . . . . . . . . . . . . Robots Hopped 1 | . . . . . . . . . . . . . . . . . . . . . . . . . . . . . . . 1 . . . Potential Cave-ins . | . . . . . . . . . . . . . . . . . . . . . . . . . . . . . . . . . . . Cave-ins Triggered . | . . . . . . . . . . . . . . . . . . . . . . . . . . . . . . . . . . . Teleports 4 | . . . . . . . . . . . . . . . . . . . . . . . . . . 1 . 1 . . . . 1 1 Spacefolds 10 | . . . . . . . . . . . . . . . . . . . . . . . . . . 4 1 . . . . 2 3 . Exploration Rate (%) 54 | 4 92 17 56 23 54 50 85 45 87 13 95 14 93 23 93 27 90 7 79 43 94 7 96 27 84 76 87 26 91 15 97 38 54 24 Regions Visited 34 Branch Regions 6 Pre-discovered Areas 5 | . 2 1 . . . . . . . . . . . 2 . . . . . . . . . . . . . . . . . . . . Known Exits Taken 15 | . . . 1 1 . 1 . 1 . 1 . 1 . 1 . 1 . 1 . 1 . 1 . 1 . 1 . 1 . 1 . . . . Unknown Exits Taken 6 | 1 1 1 . . . . . . . . . . . . . . . . . . . . . . 1 . . . . . . 1 1 . Scrap Searched . | . . . . . . . . . . . . . . . . . . . . . . . . . . . . . . . . . . . Spaces Dug 368 | . 4 . 6 1 7 12 28 10 10 7 . . . 14 . 8 . 3 1 29 . . . 2 13 22 76 14 25 7 27 31 8 3 Terrain Destroyed 946 | . 7 4 7 1 7 12 54 17 20 7 . 12 . 16 3 10 . 5 2 139 4 3 . 33 22 38 169 74 50 7 95 37 11 80 Melee 89 | . . . . 1 7 12 1 10 2 7 . . . . . . . . . . . . . . . 4 8 12 1 7 . 10 7 . Projectile 349 | . 4 . 7 . . . 2 . . . . 2 . 16 . 10 . 5 2 80 4 3 . 31 22 34 13 5 14 . 1 10 4 80 AOE 506 | . 3 4 . . . . 51 7 18 . . 10 . . 3 . . . . 59 . . . . . . 148 57 35 . 94 17 . . Terrain Rammed . | . . . . . . . . . . . . . . . . . . . . . . . . . . . . . . . . . . . Walls Destroyed . | . . . . . . . . . . . . . . . . . . . . . . . . . . . . . . . . . . . Machines Disabled . | . . . . . . . . . . . . . . . . . . . . . . . . . . . . . . . . . . . Actions | -11 -10 -10 -9 -9 -9 -8 -8 -8 -8 -7 -7 -7 -7 -6 -6 -6 -6 -5 -5 -4 -4 -3 -3 -3 -3 -3 -3 -2 -2 -1 -1 -1 -1 -1 --------- Run | Yrd Mat Min Mat Sto Gar Mat Gar Mat Gar Fac Gar Fac Gar Fac Gar Fac Gar Fac Gar Fac Gar Res Gar Res Qua Sec Gar Res Gar Acc Gar Acc Com Ac0 Total 32505 | 73 807 294 865 226 679 851 1272 565 1111 377 1191 507 751 814 1223 1063 1688 161 590 1923 942 276 673 2364 1234 1806 1339 602 1224 686 841 943 1960 584 Wait 2471 | 4 106 41 84 10 35 98 55 99 38 30 46 2 26 31 84 75 72 15 75 71 32 14 37 710 62 65 70 5 174 19 26 62 73 25 Move 24838 | 45 611 205 620 146 547 630 979 370 837 295 918 445 607 699 921 894 1385 133 448 1442 676 219 571 1390 1020 1411 1050 505 870 597 670 699 1651 332 Hop 1 | . . . . . . . . . . . . . . . . . . . . . . . . . . . . . . . 1 . . . Pick Up 547 | 10 11 6 23 4 18 12 11 4 22 5 21 3 10 7 15 7 22 1 13 30 21 4 7 33 25 54 31 10 16 10 16 12 35 18 Fast Attach 152 | 4 . 3 6 3 . . 1 1 . 1 7 . 1 3 5 2 2 1 2 16 9 4 11 9 2 22 4 3 2 . 1 10 15 2 Attach 256 | 3 2 3 4 2 1 4 4 3 6 4 9 2 5 4 9 3 10 1 5 26 10 2 1 19 7 26 13 4 8 6 5 11 18 16 Detach 109 | . . . 2 1 . 1 1 . 2 1 6 1 1 . 8 1 4 . 1 8 6 2 3 6 5 18 4 1 7 1 3 8 7 . Swap 712 | . 14 2 37 15 17 35 20 24 39 10 32 12 15 16 33 15 31 1 15 27 12 10 1 35 24 38 26 15 25 10 29 22 29 26 Drop 476 | . 7 7 20 10 13 10 9 4 18 3 24 1 5 5 11 6 12 . 13 25 13 4 14 21 22 51 22 13 16 6 17 15 43 16 Fire 2195 | 7 54 24 69 17 36 40 57 45 47 19 108 33 45 49 94 51 99 9 18 260 121 16 24 140 65 95 98 31 52 23 61 85 54 149 Melee 249 | . . . . 1 10 19 4 13 30 7 . . . . . . . . . . . . . . 1 25 16 15 39 14 8 18 29 . Ram . | . . . . . . . . . . . . . . . . . . . . . . . . . . . . . . . . . . . Kick 6 | . 2 . . . . . . . . . . . . . . . . . . . . . . . . . 2 . 1 . . . 1 . Crush 5 | . . . . 1 . 1 1 . . . . . . . . . . . . 1 1 . . . . . . . . . . . . . Escape Stasis 305 | . . . . . . . 48 . 56 . 16 . 32 . 32 8 40 . . 16 40 . . . . . 2 . 10 . 2 . 3 . Rewire 124 | . . . . . . . 73 2 7 2 4 . 4 . 3 1 8 . . 1 1 1 4 1 1 1 1 . 4 . 2 1 2 . Trap 6 | . . 3 . . 2 1 . . . . . . . . . . . . . . . . . . . . . . . . . . . . Miscellaneous 53 | . . . . 16 . . 9 . 9 . . 8 . . 8 . 3 . . . . . . . . . . . . . . . . . Route ------- -11/Scrapyard -10/Materials (discovered 4 exits: *Mat x3 / [*Min]) -10/Mines -9/Materials (discovered 4 exits: *Mat / Min / *Sto x2) -9/Storage -9/Garrison (discovered 3 exits: *Mat x3) -8/Materials (discovered 2 exits: *Fac / Gar) -8/Garrison (discovered 4 exits: *Mat x4) -8/Materials -8/Garrison (discovered 3 exits: *Fac x3) -7/Factory (discovered 2 exits: [*Low] / Gar) -7/Garrison (discovered 3 exits: *Fac x3) -7/Factory (discovered 2 exits: [*Low] / Gar) -7/Garrison (discovered 3 exits: *Fac x3) -6/Factory (discovered 5 exits: Fac x2 / Low x2 / Gar) -6/Garrison (discovered 3 exits: *Fac x3) -6/Factory (discovered 3 exits: *Fac x2 / Gar) -6/Garrison (discovered 2 exits: *Fac x2) -5/Factory -5/Garrison (discovered 3 exits: *Fac x3) -4/Factory (discovered 4 exits: *Res x2 / [*Upp] / Gar) -4/Garrison (discovered 3 exits: *Res x3) -3/Research (discovered 2 exits: *Qua / Gar) -3/Garrison (discovered 3 exits: *Res x3) -3/Research (discovered 3 exits: *Res / *Qua x2) -3/Quarantine (discovered 3 exits: *Res / *Sec / [*Frg]) -3/Section 7 (discovered 2 exits: *Res / Gar) -3/Garrison (discovered 3 exits: *Res x3) -2/Research (discovered 4 exits: *Acc x2 / [*Tes] / Gar) -2/Garrison (discovered 3 exits: *Acc x3) -1/Access -1/Garrison (discovered 3 exits: [*Acc x3]) -1/Access -1/Command (discovered 3 exits: [*Sur x2] / [*Ac0]) -1/Access_0 Near Former Tau Ceti IV History --------- Turn | Location | Event 14 | -11/Scrapyard | Discovered new exit (range 15) 97 | -11/Scrapyard | Entered Materials 298 | -10/Materials | Destroyed 7 combat bots 311 | -10/Materials | Build established: Mutant 372 | -10/Materials | Discovered new exit (range 8) 614 | -10/Materials | Discovered new exit (range 8) 881 | -10/Materials | Core integrity fell below 50% 1026 | -10/Materials | Discovered new exit (range 10) 1100 | -10/Materials | Discovered new exit (range 10) 1110 | -10/Materials | Central database locked down 1227 | -10/Materials | Entered Mines 1329 | -10/Mines | Found a hidden stash of uninstalled traps 1487 | -10/Mines | Discovered new exit (range 10) 1577 | -10/Mines | Core integrity fell below 20% 1613 | -10/Mines | Lost 3 parts (1p1n1w) 1678 | -10/Mines | Learned location of Recycling (-9) 1686 | -10/Mines | Entered Materials 1686 | -9/Materials | Evolved 2 slots: Propulsion x1, Utility x1 1937 | -9/Materials | Build established: Scavenger-Mutant 2297 | -9/Materials | Identified exit to Mines 2297 | -9/Materials | Identified exit to Storage 2456 | -9/Materials | Build established: Mutant 2599 | -9/Materials | Discovered new exit (range 4) 3049 | -9/Materials | Entered Storage 3381 | -9/Storage | Met a pair of Derelict thieves 3407 | -9/Storage | Garrison activated, responded to threat 3425 | -9/Storage | Identified exit to Garrison 3425 | -9/Storage | Entered Garrison 3499 | -9/Garrison | Triggered checkpoint 3527 | -9/Garrison | Learned Materials security intel 3653 | -9/Garrison | Discovered new exit (range 62) 3653 | -9/Garrison | Discovered new exit (range 76) 3653 | -9/Garrison | Discovered new exit (range 36) 3729 | -9/Garrison | Garrison Relay disabled 3794 | -9/Garrison | Triggered checkpoint 3902 | -9/Garrison | Core integrity fell below 50% 3931 | -9/Garrison | Triggered checkpoint 3964 | -9/Garrison | Garrison Relay disabled 4135 | -9/Garrison | Triggered checkpoint 4316 | -9/Garrison | Build established: Scavenger-Mutant 4361 | -9/Garrison | Installed Relay Interface Framework 4427 | -9/Garrison | Garrison Relay disabled 4493 | -9/Garrison | Entered Materials 4493 | -8/Materials | Evolved 2 slots: Propulsion x1, Utility x1 4685 | -8/Materials | Build established: Bothacker-Mutant 5089 | -8/Materials | Build established: Scavenger-Mutant 5519 | -8/Materials | Discovered new exit (range 7) 5689 | -8/Materials | Garrison activated, responded to threat 5839 | -8/Materials | Identified exit to Garrison 5839 | -8/Materials | Entered Garrison 5862 | -8/Garrison | Expanded RIF knowledge: Coupler Efficiency 5885 | -8/Garrison | Triggered checkpoint 6133 | -8/Garrison | Triggered checkpoint 6245 | -8/Garrison | Discovered new exit (range 9) 6323 | -8/Garrison | Triggered checkpoint 6378 | -8/Garrison | Discovered new exit (range 6) 6672 | -8/Garrison | Build established: Mutant 6680 | -8/Garrison | Triggered checkpoint 6749 | -8/Garrison | Triggered checkpoint 6796 | -8/Garrison | Garrison Relay disabled 6832 | -8/Garrison | Discovered new exit (range 14) 6930 | -8/Garrison | Phase Generator disabled 7085 | -8/Garrison | Triggered checkpoint 7162 | -8/Garrison | Rescued a captive Derelict 7168 | -8/Garrison | Rescued a captive Derelict 7190 | -8/Garrison | Discovered new exit (range 5) 7237 | -8/Garrison | Lost 4 allies 7244 | -8/Garrison | Lost 3 parts (2u1w) 7352 | -8/Garrison | Triggered checkpoint 7603 | -8/Garrison | Triggered checkpoint 7705 | -8/Garrison | Entered Materials 7763 | -8/Materials | Repaired Arm. Huge Wheel? 8409 | -8/Materials | Repaired Arm. Wheel 8570 | -8/Materials | Build established: Bothacker-Mutant 8578 | -8/Materials | Identified exit to Garrison 8581 | -8/Materials | Entered Garrison 8581 | -8/Garrison | Accompanied by 1 ally 8623 | -8/Garrison | Triggered checkpoint 8646 | -8/Garrison | Garrison Relay disabled 8743 | -8/Garrison | Triggered checkpoint 8835 | -8/Garrison | Garrison Relay disabled 8853 | -8/Garrison | Triggered checkpoint 8931 | -8/Garrison | Lost 3 allies 9018 | -8/Garrison | Triggered checkpoint 9158 | -8/Garrison | Triggered checkpoint 9307 | -8/Garrison | Phase Generator disabled 9318 | -8/Garrison | Discovered new exit (range 5) 9381 | -8/Garrison | Lost 4 allies 9387 | -8/Garrison | Triggered checkpoint 9403 | -8/Garrison | P-60 Hacker assimilated allied Commando 3b 9578 | -8/Garrison | Garrison Relay disabled 9625 | -8/Garrison | Discovered new exit (range 12) 9638 | -8/Garrison | Expanded RIF knowledge: Structural Interface 9689 | -8/Garrison | Triggered checkpoint 9811 | -8/Garrison | Triggered checkpoint 9851 | -8/Garrison | Triggered checkpoint 9909 | -8/Garrison | Garrison Relay disabled 10044 | -8/Garrison | Garrison Relay disabled 10091 | -8/Garrison | Triggered checkpoint 10148 | -8/Garrison | Discovered new exit (range 15) 10167 | -8/Garrison | Triggered checkpoint 10210 | -8/Garrison | Entered Factory 10210 | -7/Factory | Accompanied by 8 allies 10210 | -7/Factory | Evolved 2 slots: Utility x1, Weapon x1 10406 | -7/Factory | Discovered new exit (range 5) 10610 | -7/Factory | First assault squad dispatched 10696 | -7/Factory | Garrison activated, responded to threat 10752 | -7/Factory | Identified exit to Garrison 10759 | -7/Factory | Entered Garrison 10759 | -7/Garrison | Accompanied by 1 ally 10784 | -7/Garrison | Lost 12 allies 10884 | -7/Garrison | Triggered checkpoint 10908 | -7/Garrison | Garrison Relay disabled 11024 | -7/Garrison | Build established: Bothacker-Tank 11131 | -7/Garrison | Triggered checkpoint 11151 | -7/Garrison | Triggered checkpoint 11167 | -7/Garrison | Triggered checkpoint 11205 | -7/Garrison | Lost 8 allies 11248 | -7/Garrison | Discovered new exit (range 12) 11305 | -7/Garrison | Triggered checkpoint 11343 | -7/Garrison | Garrison Relay disabled 11523 | -7/Garrison | Expanded RIF knowledge: Alert ID Control 11554 | -7/Garrison | Discovered new exit (range 14) 11616 | -7/Garrison | Triggered checkpoint 11643 | -7/Garrison | Garrison Relay disabled 11665 | -7/Garrison | Lost 3 allies 11792 | -7/Garrison | Garrison Relay disabled 11819 | -7/Garrison | Build established: Botlord-Tank 11829 | -7/Garrison | Triggered checkpoint 11841 | -7/Garrison | Discovered new exit (range 12) 11871 | -7/Garrison | Triggered checkpoint 11889 | -7/Garrison | Garrison Relay disabled 12197 | -7/Garrison | Triggered checkpoint 12235 | -7/Garrison | Garrison Relay disabled 12283 | -7/Garrison | Learned Factory security intel 12428 | -7/Garrison | Entered Factory 12428 | -7/Factory | Accompanied by 3 allies 12609 | -7/Factory | Discovered new exit (range 15) 12827 | -7/Factory | Lost 3 allies 13092 | -7/Factory | Cargo convoy interrupted 13197 | -7/Factory | Lost 4 allies 13217 | -7/Factory | Identified exit to Garrison 13217 | -7/Factory | Entered Garrison 13237 | -7/Garrison | Triggered checkpoint 13263 | -7/Garrison | Garrison Relay disabled 13337 | -7/Garrison | Triggered checkpoint 13347 | -7/Garrison | Triggered checkpoint 13372 | -7/Garrison | Triggered checkpoint 13400 | -7/Garrison | Lost 6 allies 13480 | -7/Garrison | Triggered checkpoint 13516 | -7/Garrison | Expanded RIF knowledge: Coupler Efficiency 13555 | -7/Garrison | Garrison Relay disabled 13653 | -7/Garrison | Discovered new exit (range 13) 13679 | -7/Garrison | Triggered checkpoint 13838 | -7/Garrison | Garrison Relay disabled 13881 | -7/Garrison | Triggered checkpoint 13890 | -7/Garrison | Discovered new exit (range 11) 13925 | -7/Garrison | Found embedded Infiltrators 14101 | -7/Garrison | Triggered checkpoint 14106 | -7/Garrison | Garrison Relay disabled 14333 | -7/Garrison | Triggered checkpoint 14368 | -7/Garrison | Rescued a captive Derelict 14382 | -7/Garrison | Discovered new exit (range 13) 14431 | -7/Garrison | Entered Factory 14431 | -6/Factory | Accompanied by 7 allies 14431 | -6/Factory | Evolved 2 slots: Utility x2 15027 | -6/Factory | Lost 4 allies 15054 | -6/Factory | Garrison activated, responded to threat 15611 | -6/Factory | Identified exit to Lower Caves 15704 | -6/Factory | Learned location of 2 exits from Lower Caves 15761 | -6/Factory | Learned Extension garrison access intel 15807 | -6/Factory | Learned 4 Upper Caves zone layouts 15842 | -6/Factory | Learned location of 2 exits from Lower Caves 15866 | -6/Factory | Learned location of Archives (-5) 15881 | -6/Factory | Learned location of Zion (-6) 15886 | -6/Factory | Identified exit to Factory 15899 | -6/Factory | Learned 4 Lower Caves zone layouts 15900 | -6/Factory | Identified exit to Garrison 15900 | -6/Factory | Entered Garrison 15900 | -6/Garrison | Accompanied by 1 ally 16037 | -6/Garrison | Expanded RIF knowledge: Robot Detection 16082 | -6/Garrison | Triggered checkpoint 16120 | -6/Garrison | Triggered checkpoint 16146 | -6/Garrison | Garrison Relay disabled 16242 | -6/Garrison | Spotted B-75 Beast 16259 | -6/Garrison | Destroyed B-75 Beast 16296 | -6/Garrison | Triggered checkpoint 16335 | -6/Garrison | Triggered checkpoint 16466 | -6/Garrison | Rescued a captive Derelict 16467 | -6/Garrison | Rescued a captive Derelict 16504 | -6/Garrison | Discovered new exit (range 12) 16510 | -6/Garrison | Triggered checkpoint 16558 | -6/Garrison | Triggered checkpoint 16565 | -6/Garrison | Garrison Relay disabled 16878 | -6/Garrison | Triggered checkpoint 16906 | -6/Garrison | Triggered checkpoint 16948 | -6/Garrison | Garrison Relay disabled 16960 | -6/Garrison | Lost 3 allies 17047 | -6/Garrison | Discovered new exit (range 9) 17060 | -6/Garrison | Triggered checkpoint 17144 | -6/Garrison | Garrison Relay disabled 17325 | -6/Garrison | Discovered new exit (range 11) 17364 | -6/Garrison | Garrison Relay disabled 17479 | -6/Garrison | Garrison Relay disabled 17660 | -6/Garrison | P-60 Hacker assimilated allied Fighter 5c 17689 | -6/Garrison | Found Relay Coupler [Proto] 17743 | -6/Garrison | Entered Factory 17743 | -6/Factory | Accompanied by 5 allies 17908 | -6/Factory | Repaired Cld. Particle Cannon 18010 | -6/Factory | Lost 3 allies 18298 | -6/Factory | Fabricated Cld. Plasma Cannon (x1) 18389 | -6/Factory | Spotted B-75 Beast 18639 | -6/Factory | Identified exit to Garrison 18677 | -6/Factory | Discovered exit to Factory (range 13) 18918 | -6/Factory | Discovered exit to Factory (range 10) 19056 | -6/Factory | Repaired Cld. Particle Cannon? 19268 | -6/Factory | Entered Garrison 19268 | -6/Garrison | Accompanied by 2 allies 19299 | -6/Garrison | Triggered checkpoint 19365 | -6/Garrison | Garrison Relay disabled 19368 | -6/Garrison | Lost 3 allies 19447 | -6/Garrison | P-60 Hacker assimilated allied S-27 Virus 19618 | -6/Garrison | Triggered checkpoint 19644 | -6/Garrison | Triggered checkpoint 19663 | -6/Garrison | Garrison Relay disabled 19876 | -6/Garrison | Lost 6 allies 19934 | -6/Garrison | Triggered checkpoint 19940 | -6/Garrison | Triggered checkpoint 19952 | -6/Garrison | Triggered checkpoint 19974 | -6/Garrison | Triggered checkpoint 20055 | -6/Garrison | Lost 12 allies 20064 | -6/Garrison | Found embedded Infiltrators 20116 | -6/Garrison | Found Quantum Capacitor 20166 | -6/Garrison | Triggered checkpoint 20188 | -6/Garrison | Expanded RIF knowledge: Signal Jamming 20224 | -6/Garrison | Garrison Relay disabled 20257 | -6/Garrison | Garrison Relay disabled 20258 | -6/Garrison | Heavy support dispatched to Factory 20401 | -6/Garrison | Heavy support dispatched to Factory 20457 | -6/Garrison | Rewired Striker 20465 | -6/Garrison | Rewired Striker 20535 | -6/Garrison | Discovered exit to Factory (range 12) 20551 | -6/Garrison | H-XX Assembler disabled 20656 | -6/Garrison | Triggered checkpoint 20686 | -6/Garrison | Garrison Relay disabled 20792 | -6/Garrison | Triggered checkpoint 20831 | -6/Garrison | Garrison Relay disabled 20882 | -6/Garrison | Discovered exit to Factory (range 14) 21627 | -6/Garrison | Entered Factory 21627 | -5/Factory | Accompanied by 13 allies 21627 | -5/Factory | Evolved 2 slots: Utility x2 21857 | -5/Factory | Identified exit to Garrison 21863 | -5/Factory | Entered Garrison 21863 | -5/Garrison | Accompanied by 13 allies 21895 | -5/Garrison | Discovered new exit (range 49) 21895 | -5/Garrison | Discovered new exit (range 36) 21895 | -5/Garrison | Discovered new exit (range 41) 21923 | -5/Garrison | Triggered checkpoint 21942 | -5/Garrison | Garrison Relay disabled 22083 | -5/Garrison | Triggered checkpoint 22095 | -5/Garrison | Triggered checkpoint 22109 | -5/Garrison | Triggered checkpoint 22168 | -5/Garrison | Triggered checkpoint 22235 | -5/Garrison | Triggered checkpoint 22268 | -5/Garrison | Expanded RIF knowledge: Command Fork 22328 | -5/Garrison | Garrison Relay disabled 22340 | -5/Garrison | Spotted B-75 Beast 22362 | -5/Garrison | Allies destroyed B-75 Beast 22389 | -5/Garrison | Lost 3 allies 22573 | -5/Garrison | Triggered checkpoint 22584 | -5/Garrison | Garrison Relay disabled 22737 | -5/Garrison | Entered Factory 22737 | -4/Factory | Accompanied by 13 allies 22737 | -4/Factory | Evolved 2 slots: Utility x2 22916 | -4/Factory | Unchained authorized (DW-4LL) 23130 | -4/Factory | Lost 11 allies 23240 | -4/Factory | DW-4LL burst out of a wall 23249 | -4/Factory | System corruption reached 10% 23277 | -4/Factory | Destroyed DW-4LL 23283 | -4/Factory | Lost 8 parts (8u) 23322 | -4/Factory | Found Prototype Device 23324 | -4/Factory | Found Prototype Processor 23327 | -4/Factory | Found Prototype Protection 23329 | -4/Factory | Found Prototype Ballistic Gun 23377 | -4/Factory | Identified Zeronet Interface 23425 | -4/Factory | System corruption reached 30% 23427 | -4/Factory | P-70 Sage assimilated allied Technician 7a 23786 | -4/Factory | Lost 5 allies 24719 | -4/Factory | Build established: Botlord-Mutant 24749 | -4/Factory | Discovered new exit (range 7) 24828 | -4/Factory | Spotted B-86 Titan 24841 | -4/Factory | Discovered new exit (range 4) 25175 | -4/Factory | Build established: Botlord-Tank 25621 | -4/Factory | Discovered new exit (range 4) 25643 | -4/Factory | Identified exit to Garrison 25643 | -4/Factory | Entered Garrison 25643 | -4/Garrison | Accompanied by 1 ally 25645 | -4/Garrison | Triggered checkpoint 25669 | -4/Garrison | Triggered checkpoint 25671 | -4/Garrison | Identified DW-4LL's Megashotty 25741 | -4/Garrison | Garrison Relay disabled 25875 | -4/Garrison | Triggered checkpoint 25881 | -4/Garrison | Triggered checkpoint 25977 | -4/Garrison | Rescued a captive Derelict 26014 | -4/Garrison | Garrison Relay disabled 26068 | -4/Garrison | Discovered new exit (range 10) 26121 | -4/Garrison | H-XX Assembler disabled 26221 | -4/Garrison | Triggered checkpoint 26314 | -4/Garrison | Triggered checkpoint 26377 | -4/Garrison | Lost 4 allies 26453 | -4/Garrison | Triggered checkpoint 26513 | -4/Garrison | Garrison Relay disabled 26575 | -4/Garrison | Discovered new exit (range 10) 26698 | -4/Garrison | Spotted Striker 26701 | -4/Garrison | Spotted Striker 26724 | -4/Garrison | Destroyed Striker 26788 | -4/Garrison | Destroyed Striker 26804 | -4/Garrison | Rewired Executioner 26814 | -4/Garrison | Rewired Striker 26885 | -4/Garrison | Triggered checkpoint 26892 | -4/Garrison | Garrison Relay disabled 26958 | -4/Garrison | Garrison Relay disabled 26998 | -4/Garrison | Discovered new exit (range 4) 27059 | -4/Garrison | Expanded RIF knowledge: Autoassimilate 27090 | -4/Garrison | Found Fusion Bomb Launcher 27122 | -4/Garrison | Found Fusion Bomb Launcher 27187 | -4/Garrison | Entered Research 27187 | -3/Research | Accompanied by 2 allies 27187 | -3/Research | Evolved 2 slots: Propulsion x2 27337 | -3/Research | Identified Exp. Armor Integrity Analyzer 27368 | -3/Research | Discovered new exit (range 13) 27447 | -3/Research | Unchained authorized (CL-0N3) 27476 | -3/Research | Found Corrupted Exp. Targeting Computer 27555 | -3/Research | Identified exit to Garrison 27561 | -3/Research | Entered Garrison 27561 | -3/Garrison | Discovered recently destroyed garrison 27561 | -3/Garrison | Accompanied by 3 allies 27601 | -3/Garrison | Garrison Relay disabled 27758 | -3/Garrison | Expanded RIF knowledge: Command Fork 27816 | -3/Garrison | Discovered new exit (range 12) 27905 | -3/Garrison | Garrison Relay disabled 28116 | -3/Garrison | Found embedded Infiltrators 28119 | -3/Garrison | Discovered new exit (range 5) 28163 | -3/Garrison | Garrison Relay disabled 28326 | -3/Garrison | Discovered new exit (range 14) 28403 | -3/Garrison | Entered Research 28403 | -3/Research | Accompanied by 17 allies 28578 | -3/Research | Unchained authorized (CL-0N3) 28837 | -3/Research | R-10 Processor reconstituted as Executioner 28837 | -3/Research | Spotted Executioner 28837 | -3/Research | Allies destroyed Executioner 28837 | -3/Research | Executioner reconstituted as CL-0N3 28901 | -3/Research | P-80 Master assimilated allied Assassin 8a 29055 | -3/Research | Lost 4 allies 29289 | -3/Research | R-10 Processor reconstituted as Thunder 29289 | -3/Research | Spotted Thunder 29294 | -3/Research | Destroyed Thunder 29294 | -3/Research | Thunder reconstituted as CL-0N3 29320 | -3/Research | Lost 3 allies 29391 | -3/Research | Spotted B-86 Titan 29396 | -3/Research | Identified exit to Quarantine 29424 | -3/Research | Destroyed B-86 Titan 29426 | -3/Research | Lost 3 allies 29467 | -3/Research | Discovered new exit (range 12) 29594 | -3/Research | Found Powered Armor 29596 | -3/Research | Found Powered Armor 29777 | -3/Research | K-01 Serf reconstituted as Alpha 7 29779 | -3/Research | Spotted Alpha 7 29787 | -3/Research | Destroyed Alpha 7 29787 | -3/Research | Alpha 7 reconstituted as CL-0N3 29903 | -3/Research | First assault squad dispatched 30019 | -3/Research | T-07 Excavator reconstituted as Access Guard 30019 | -3/Research | Spotted Access Guard 30077 | -3/Research | Destroyed Access Guard 30077 | -3/Research | Access Guard reconstituted as CL-0N3 30094 | -3/Research | Lost 5 parts (1n3u1w) 30118 | -3/Research | Identified DW-4LL's Blast Wall 30192 | -3/Research | Assimilated Heavy ARC 8a with formatsys_deep 30255 | -3/Research | Lost 4 allies 30815 | -3/Research | S-43 Plague reconstituted as Executioner 30815 | -3/Research | Spotted Executioner 30825 | -3/Research | Destroyed Executioner 30825 | -3/Research | Executioner reconstituted as CL-0N3 31021 | -3/Research | P-80 Master reconstituted as S7 Guard 31021 | -3/Research | Spotted S7 Guard 31022 | -3/Research | System corruption reached 10% 31092 | -3/Research | Destroyed S7 Guard 31092 | -3/Research | S7 Guard reconstituted as CL-0N3 31116 | -3/Research | Lost 3 parts (1n1u1w) 31214 | -3/Research | Spotted B-86 Titan 31276 | -3/Research | Destroyed B-86 Titan 31406 | -3/Research | Assassin 8b reconstituted as Cetus Guard 31408 | -3/Research | Spotted Cetus Guard 31412 | -3/Research | Destroyed Cetus Guard 31412 | -3/Research | Cetus Guard reconstituted as CL-0N3 31412 | -3/Research | Destroyed CL-0N3 31426 | -3/Research | Found Zeronet Interface 31427 | -3/Research | Extracted schematics, analyses from CL-0N3's data core 31437 | -3/Research | Lost 3 parts (2n1u) 31488 | -3/Research | Entered Quarantine 31488 | -3/Quarantine | Accompanied by 1 ally 31569 | -3/Quarantine | Found Prototype Processor 31583 | -3/Quarantine | Found Alien Artifact 31656 | -3/Quarantine | Found Gamma Bomb Array 31786 | -3/Quarantine | Found Prototype Protection 31842 | -3/Quarantine | Found Fusion Bomb Launcher 31898 | -3/Quarantine | Garrison activated, responded to threat 31992 | -3/Quarantine | Identified Subatomic Replicator 31992 | -3/Quarantine | Identified Centrium Heavy Armor Plating 31992 | -3/Quarantine | Identified Spectral Analyzer 32015 | -3/Quarantine | Found Sigix Broadsword 32365 | -3/Quarantine | Found Alien Artifact 32426 | -3/Quarantine | Identified Core Reset Matrix 32465 | -3/Quarantine | Found Terrabomb 32482 | -3/Quarantine | Found Exp. Hacking Suite 32611 | -3/Quarantine | Found Transdimensional Reconstructor 32617 | -3/Quarantine | Found Dimensional Node Initializer 32620 | -3/Quarantine | Initialized slip node 32623 | -3/Quarantine | Found Dimensional Node Initializer 32633 | -3/Quarantine | Found Hpw. Transdimensional Reconstructor 32644 | -3/Quarantine | Discovered new exit (range 14) 32840 | -3/Quarantine | Spotted Fortress 32852 | -3/Quarantine | Assimilated Fortress with formatsys_high 32892 | -3/Quarantine | Build established: Botlord-Mutant 33022 | -3/Quarantine | Discovered new exit (range 6) 33022 | -3/Quarantine | Discovered new exit (range 7) 33053 | -3/Quarantine | Entered Section 7 33053 | -3/Section 7 | Accompanied by 11 allies 33065 | -3/Section 7 | Identified exit to Garrison 33134 | -3/Section 7 | Initialized slip node 33258 | -3/Section 7 | Lost 3 allies 33383 | -3/Section 7 | Build established: Botlord-Tank 33504 | -3/Section 7 | Found Alien Artifact 33536 | -3/Section 7 | Spotted B-86 Titan 33571 | -3/Section 7 | Spotted S7 Guard 33591 | -3/Section 7 | Destroyed S7 Guard 33595 | -3/Section 7 | Destroyed B-86 Titan 33606 | -3/Section 7 | Lost 3 allies 33645 | -3/Section 7 | Found Alien Artifact 33702 | -3/Section 7 | Lost 3 allies 33859 | -3/Section 7 | Found Alien Artifact 33972 | -3/Section 7 | Spotted Executioner 33972 | -3/Section 7 | Spotted Executioner 34032 | -3/Section 7 | Destroyed Executioner 34173 | -3/Section 7 | Spotted B-99 Colossus 34272 | -3/Section 7 | Destroyed B-99 Colossus 34300 | -3/Section 7 | Lost 4 parts (3n1u) 34361 | -3/Section 7 | Identified Integrated Dissipator 34361 | -3/Section 7 | Identified Spacefold Activator 34361 | -3/Section 7 | Identified Core Regenerator 34369 | -3/Section 7 | Installed Integrated Dissipator, increased core heat dissipation (+20) 34378 | -3/Section 7 | Found Core Expander 34379 | -3/Section 7 | Installed Core Expander, added new Propulsion slot 34471 | -3/Section 7 | Found Integrated Dissipator 34471 | -3/Section 7 | Installed Integrated Dissipator, increased core heat dissipation (+20) 34557 | -3/Section 7 | Found Alien Artifact 34566 | -3/Section 7 | Identified LRC Storage 34568 | -3/Section 7 | Used Subatomic Replicator to replicate LRC Storage 34569 | -3/Section 7 | Installed LRC Storage, increased inventory capacity (+2) 34573 | -3/Section 7 | Installed LRC Storage, increased inventory capacity (+2) 34614 | -3/Section 7 | Build established: Botlord-Mutant 34706 | -3/Section 7 | System corruption reached 30% 34897 | -3/Section 7 | Found Transdimensional Reconstructor 34900 | -3/Section 7 | Found Transdimensional Reconstructor 34916 | -3/Section 7 | Found Terrabomb 35065 | -3/Section 7 | Destroyed Executioner 35071 | -3/Section 7 | Found Exp. Core Analyzer 35468 | -3/Section 7 | P-80 Master assimilated allied Warden 8r 35503 | -3/Section 7 | Core integrity fell below 50% 35536 | -3/Section 7 | Discovered new exit (range 8) 35551 | -3/Section 7 | Found Integrated Dissipator 35559 | -3/Section 7 | Warped through subspace to slip node 35560 | -3/Section 7 | Installed Integrated Dissipator, increased core heat dissipation (+20) 35643 | -3/Section 7 | Entered Garrison 35781 | -3/Garrison | Triggered checkpoint 35833 | -3/Garrison | Garrison Relay disabled 35901 | -3/Garrison | Triggered checkpoint 35914 | -3/Garrison | Build established: Hauler-Gladiator 35954 | -3/Garrison | Spotted B-86 Titan 36111 | -3/Garrison | Destroyed B-86 Titan 36220 | -3/Garrison | Triggered checkpoint 36333 | -3/Garrison | Triggered checkpoint 36383 | -3/Garrison | Lost 3 parts (1n1u1w) 36389 | -3/Garrison | Build established: Hauler-Gunner 36400 | -3/Garrison | Garrison Relay disabled 36442 | -3/Garrison | Discovered new exit (range 13) 36555 | -3/Garrison | Triggered checkpoint 36561 | -3/Garrison | Triggered checkpoint 36583 | -3/Garrison | Core integrity fell below 20% 36687 | -3/Garrison | Expanded RIF knowledge: Watcher Feeds 36709 | -3/Garrison | Garrison Relay disabled 36780 | -3/Garrison | Discovered new exit (range 22) 36850 | -3/Garrison | Triggered checkpoint 36917 | -3/Garrison | Lost 6 allies 36921 | -3/Garrison | Triggered checkpoint 36953 | -3/Garrison | Found embedded Infiltrators 36980 | -3/Garrison | Build established: Botlord-Gladiator 37175 | -3/Garrison | Triggered checkpoint 37175 | -3/Garrison | Discovered new exit (range 17) 37180 | -3/Garrison | Spotted B-86 Titan 37227 | -3/Garrison | Lost 8 allies 37269 | -3/Garrison | Entered Research 37269 | -2/Research | Evolved 2 slots: Power x2 37513 | -2/Research | Discovered new exit (range 30) 37624 | -2/Research | Spotted B-90 Cyclops 37784 | -2/Research | Warped through subspace 37815 | -2/Research | Discovered new exit (range 24) 37907 | -2/Research | Unchained authorized (GL-D0S) 37928 | -2/Research | Discovered new exit (range 15) 37990 | -2/Research | Identified exit to Garrison 37990 | -2/Research | Entered Garrison 38026 | -2/Garrison | Triggered checkpoint 38085 | -2/Garrison | Expanded RIF knowledge: Autooverride 38093 | -2/Garrison | Garrison Relay disabled 38172 | -2/Garrison | Rescued a captive Derelict 38173 | -2/Garrison | Rescued a captive Derelict 38274 | -2/Garrison | Spotted B-90 Cyclops 38330 | -2/Garrison | Assimilated Cyclops 9a with formatsys_high 38352 | -2/Garrison | Triggered checkpoint 38519 | -2/Garrison | Assimilated Heavy ARC 9a with formatsys_deep 38522 | -2/Garrison | Triggered checkpoint 38526 | -2/Garrison | Triggered checkpoint 38608 | -2/Garrison | Discovered new exit (range 7) 38640 | -2/Garrison | Triggered checkpoint 38755 | -2/Garrison | Garrison Relay disabled 38914 | -2/Garrison | Destroyed 8 combat bots 38919 | -2/Garrison | Discovered new exit (range 10) 38952 | -2/Garrison | Triggered checkpoint 39031 | -2/Garrison | Garrison Relay disabled 39182 | -2/Garrison | Triggered checkpoint 39182 | -2/Garrison | Garrison Relay disabled 39331 | -2/Garrison | Triggered checkpoint 39342 | -2/Garrison | Discovered new exit (range 14) 39479 | -2/Garrison | Found Relay Coupler [Proto] 39481 | -2/Garrison | Found Relay Coupler [Proto] 39557 | -2/Garrison | Entered Access 39557 | -1/Access | Accompanied by 6 allies 39557 | -1/Access | Evolved 2 slots: Propulsion x1, Utility x1 39685 | -1/Access | P-80 Master assimilated allied Enforcer 9c 39760 | -1/Access | Unchained authorized (GL-D0S) 39996 | -1/Access | Lost 4 allies 40355 | -1/Access | Identified exit to Garrison 40355 | -1/Access | Entered Garrison 40461 | -1/Garrison | Triggered checkpoint 40482 | -1/Garrison | Garrison Relay disabled 40514 | -1/Garrison | Lost 5 allies 40521 | -1/Garrison | Triggered checkpoint 40521 | -1/Garrison | Triggered checkpoint 40527 | -1/Garrison | Spotted B-99 Colossus 40534 | -1/Garrison | Triggered checkpoint 40565 | -1/Garrison | Allies destroyed B-99 Colossus 40583 | -1/Garrison | Lost 5 allies 40591 | -1/Garrison | Triggered checkpoint 40696 | -1/Garrison | Discovered new exit (range 15) 40702 | -1/Garrison | Lost 4 allies 40765 | -1/Garrison | Expanded RIF knowledge: Command Fork 40795 | -1/Garrison | Triggered checkpoint 40816 | -1/Garrison | Garrison Relay disabled 40892 | -1/Garrison | Found Relay Coupler [Proto] 40894 | -1/Garrison | Found Relay Coupler [Proto] 41015 | -1/Garrison | Triggered checkpoint 41052 | -1/Garrison | Discovered new exit (range 2) 41077 | -1/Garrison | Garrison Relay disabled 41187 | -1/Garrison | Garrison Relay disabled 41199 | -1/Garrison | Triggered checkpoint 41251 | -1/Garrison | Discovered new exit (range 16) 41304 | -1/Garrison | Entered Access 41304 | -1/Access | Accompanied by 8 allies 41391 | -1/Access | Spotted B-99 Colossus 41476 | -1/Access | Unchained authorized (GL-D0S) 41554 | -1/Access | First assault squad dispatched 41561 | -1/Access | Lost 3 allies 41587 | -1/Access | Allied Derelicts emerged from ambush trap array 41648 | -1/Access | P-80 Master assimilated allied Enforcer 10t 41701 | -1/Access | Lost 11 allies 41725 | -1/Access | Energy Cycler disabled 41792 | -1/Access | Lost 3 parts (1n2u) 41793 | -1/Access | Assimilated Heavy ARC 10a with formatsys_deep 41873 | -1/Access | Lost 5 allies 42460 | -1/Access | Discovered new exit (range 8) 42472 | -1/Access | Entered Command 42739 | -1/Command | System corruption reached 10% 42830 | -1/Command | Spotted Executioner 42830 | -1/Command | Spotted Executioner 42830 | -1/Command | Spotted Alpha 7 42830 | -1/Command | Spotted Striker 42830 | -1/Command | Spotted Striker 42830 | -1/Command | Spotted Alpha 7 42831 | -1/Command | Spotted Executioner 42831 | -1/Command | Spotted Executioner 42849 | -1/Command | Assimilated Striker with formatsys_high 42849 | -1/Command | Assimilated Alpha 7 with formatsys_high 42853 | -1/Command | Assimilated Executioner with formatsys_high 42853 | -1/Command | Assimilated Executioner with formatsys_high 42855 | -1/Command | Assimilated Alpha 7 with formatsys_high 42855 | -1/Command | Assimilated Executioner with formatsys_high 42875 | -1/Command | Spotted B-99 Colossus 42879 | -1/Command | Spotted B-99 Colossus 42883 | -1/Command | Assimilated Colossus 10a with formatsys_high 42887 | -1/Command | Lost 6 allies 42901 | -1/Command | Assimilated Colossus 10b with formatsys_high 43198 | -1/Command | Spotted M Guard 43199 | -1/Command | Spotted M Guard 43199 | -1/Command | Spotted Combat Programmer 43216 | -1/Command | Spotted Combat Programmer 43233 | -1/Command | Allies destroyed Combat Programmer 43237 | -1/Command | Assimilated M Guard with formatsys_high 43237 | -1/Command | Assimilated M Guard with formatsys_high 43388 | -1/Command | Met MAIN.C 43396 | -1/Command | 0b10 Conduit disabled 43406 | -1/Command | Allies destroyed MAIN.C Shell 43407 | -1/Command | MAIN.C activated Command garrisons 43420 | -1/Command | Allies destroyed MAIN.C 43442 | -1/Command | Discovered new exit (range 33) 43442 | -1/Command | Discovered new exit (range 93) 43442 | -1/Command | Extracted map data and part IDs from MAIN.C's data core 43450 | -1/Command | Lost 5 allies 43541 | -1/Command | Found Exp. System Purifier 43549 | -1/Command | Found SHELL Armor 43559 | -1/Command | Found Zero-point Reactor 43562 | -1/Command | Found Zero-point Reactor 43616 | -1/Command | All MAIN.C guards destroyed 44090 | -1/Command | Build established: Hauler-Mutant 44105 | -1/Command | Found Corrupted Zero-point Reactor 44394 | -1/Command | Destroyed Alpha 7 44400 | -1/Command | Found Corrupted Exp. Targeting Computer 44596 | -1/Command | Used Core Regenerator, restored core integrity (+393) 44701 | -1/Command | Found Multirail 44909 | -1/Command | Warped through subspace to slip node 44909 | -1/Command | Discovered new exit (range 4) 44911 | -1/Command | Found Quantum Capacitor 44923 | -1/Command | Entered Access_0 44925 | -1/Access_0 | Met Architect 44947 | -1/Access_0 | Destroyed A8 44971 | -1/Access_0 | Architect warped through subspace 45034 | -1/Access_0 | Architect warped through subspace 45070 | -1/Access_0 | Found Integrated Dissipator 45070 | -1/Access_0 | Installed Integrated Dissipator, increased core heat dissipation (+20) 45088 | -1/Access_0 | Architect warped through subspace 45154 | -1/Access_0 | Architect warped through subspace 45197 | -1/Access_0 | Architect warped through subspace 45224 | -1/Access_0 | Build established: Hauler-Gunner 45250 | -1/Access_0 | Architect warped through subspace 45307 | -1/Access_0 | Architect warped through subspace 45310 | -1/Access_0 | Subspace Access Node disabled 45356 | -1/Access_0 | Architect warped through subspace 45381 | -1/Access_0 | Subspace Access Node disabled 45386 | -1/Access_0 | A6 warped into view 45397 | -1/Access_0 | Destroyed A6 45407 | -1/Access_0 | Architect warped through subspace 45450 | -1/Access_0 | Architect warped through subspace 45456 | -1/Access_0 | Found Exp. Powered Armor 45481 | -1/Access_0 | Architect warped through subspace 45515 | -1/Access_0 | Architect warped through subspace 45526 | -1/Access_0 | Subspace Access Node disabled 45533 | -1/Access_0 | Lost 3 parts (2n1u) 45535 | -1/Access_0 | Architect warped through subspace 45562 | -1/Access_0 | Architect warped through subspace 45597 | -1/Access_0 | Architect warped through subspace 45609 | -1/Access_0 | Architect warped through subspace 45636 | -1/Access_0 | Architect warped through subspace 45653 | -1/Access_0 | Architect warped through subspace 45690 | -1/Access_0 | Architect warped through subspace 45701 | -1/Access_0 | Architect warped through subspace 45709 | -1/Access_0 | Core integrity fell below 50% 45726 | -1/Access_0 | Subspace Access Node disabled 45792 | -1/Access_0 | Lost 5 parts (2n2u1w) 45816 | -1/Access_0 | Destroyed Architect 45817 | -1/Access_0 | Architect triggered a singularity event 45819 | -1/Access_0 | Warped through subspace to slip node 45819 | -1/Access_0 | Discovered new exit (range 8) 45821 | -1/Access_0 | Released all parts (20) 45824 | *** | Escaped singularity! Last Messages --------------- 45821_ Released Enh. Flexi-carbon Leg. 45821_ Released Imp. Quantum Reactor. 45821_ Released Graphene Brace. 45821_ Released Exp. Biometal Leg. 45821_ Released Hds. Centrium Leg. 45821_ Released Adv. Targeting Computer. 45821_ Released Huge Storage Unit. 45821_ Released Exp. Core Analyzer. 45821_ Released Spectral Analyzer. 45821_ Released SHELL Armor. 45821_ Released Exp. Targeting Computer. 45821_ Released Hvy. Quantum Rifle. 45821_ Released Hds. Centrium Leg. 45821_ Released Hvy. Antimatter Reactor. 45821_ Released Zero-point Reactor. [Achievement: Live, Flee, And Rebuild] 45822_ A0_COM: 6. 45822_ Extracted 436 energy. 45823_ A0_COM: 5. 45824_ A0_COM: 4. Map ----- +----------------------------------------------------+ | | | | | | | | | | | | | | | | | | | | | | | | | | | | | | | | | ?????????????????????????????????????????????????? | | ?????????????????????????????????????????????????? | | ?????????????????????????????????????????????????? | | ?????????????????????????????????????????????????? | | ?????????????????????????????????????????????????? | | ?????????????????????????????????????????????????? | | ????????????????????????###??????????????????????? | | ???????????????????????## ##?????????????????????? | | ???????????????????????# #?????????????????????? | | ???????????????????????# @ #?????????????????????? | | ??????????????????????## #?????????????????????? | | ??????????????????????# * #?????????????????????? | | ??????????????????????#=!*##?????????????????????? | | ??????????????????????##!][#?????????????????????? | | ??????????????????????#!!!!#?????????????????????? | | ??????????????????????#*[=##?????????????????????? | | ??????????????????????#[!!=#?????????????????????? | | ??????????????????????#!!=##?????????????????????? | | ??????????????????????##=!#??????????????????????? | | ???????????????????????####??????????????????????? | | ?????????????????????????????????????????????????? | | ?????????????????????????????????????????????????? | | ?????????????????????????????????????????????????? | | ?????????????????????????????????????????????????? | | ?????????????????????????????????????????????????? | | ?????????????????????????????????????????????????? | | ?????????????????????????????????????????????????? | | ?????????????????????????????????????????????????? | | ?????????????????????????????????????????????????? | | ?????????????????????????????????????????????????? | | ?????????????????????????????????????????????????? | | ?????????????????????????????????????????????????? | | ?????????????????????????????????????????????????? | | ?????????????????????????????????????????????????? | +----------------------------------------------------+ Best States ------------- Heat Dissipation 207 Coolant Potential 120 Energy Generation 117 Energy Capacity 950 Matter Stores 564 Matter Capacity 800 Sight Range 24 Terrain Scan Range 24 Terrain Scan Density 10 Jamming Range 12 Power Amplification 40 Armor Coverage 2400 Resistance: KI 30 Resistance: TH 30 Resistance: EX 75 Resistance: EM 20 Core Shielding 20 Utility Shielding 66 Point Defense Rating 240 Weapon Cycling 25 Phase Shifting 15 Evasion (%) 85 Targeting Accuracy 20 Core Analysis 8 Recoil Reduction 6 Particle Charging 25 Offensive Hacking 16 Relay Coupler Types 6 Relay Coupler Value 169 Authchip Count 2 Item Schematics ----------------- Hcp. Storage Unit | -10/Materials | Hacked Cld. Plasma Cannon | -6/Factory | Scanalyzed Hvy. Neutron Cannon | -3/Quarantine | Archive Exp. Thermal Shield | -3/Quarantine | Archive Hvy. Gatling Laser | -3/Quarantine | Archive Exp. Utility Shielding | -3/Quarantine | Archive Imp. Matter Neutralizer | -3/Quarantine | Archive Cld. Field Propulsion Drive | -3/Quarantine | Archive Hvy. Tesla Rifle | -3/Quarantine | Archive Exp. Coolant Injector | -3/Quarantine | Archive Mni. Fusion Reactor | -3/Quarantine | Archive Exp. Signal Interpreter | -3/Section 7 | Archive Tactical Quantum Warhead | -3/Section 7 | Archive Cld. Antimatter Reactor | -3/Section 7 | Archive Stealth Drone Bay | -3/Section 7 | Archive Prc. Energy Filter | -3/Section 7 | Archive Helical Railgun | -3/Section 7 | Archive Robot Schematics ------------------ K-01 Serf | -3/Research | Archive T-07 Excavator | -3/Research | Archive A-02 Transporter | -3/Research | Archive A-15 Conveyor | -3/Research | Archive R-06 Scavenger | -3/Research | Archive R-10 Processor | -3/Research | Archive M-14 Sweeper | -3/Research | Archive M-22 Extractor | -3/Research | Archive M-30 Cleanser | -3/Research | Archive M-13 Machinist | -3/Research | Archive M-28 Smith | -3/Research | Archive M-36 Artificer | -3/Research | Archive O-16 Technician | -3/Research | Archive O-24 Administrator | -3/Research | Archive O-32 Director | -3/Research | Archive W-16 Scout | -3/Research | Archive W-25 Informer | -3/Research | Archive W-44 Eye | -3/Research | Archive S-10 Pest | -3/Research | Archive S-27 Virus | -3/Research | Archive S-43 Plague | -3/Research | Archive G-34 Mercenary | -3/Research | Archive G-47 Trooper | -3/Research | Archive G-50 Soldier | -3/Research | Archive G-67 Veteran | -3/Research | Archive G-73 Enforcer | -3/Research | Archive B-36 Bruiser | -3/Research | Archive B-48 Gladiator | -3/Research | Archive B-60 Warrior | -3/Research | Archive B-74 Champion | -3/Research | Archive L-31 Rogue | -3/Research | Archive L-41 Fighter | -3/Research | Archive L-61 Swordsman | -3/Research | Archive Y-45 Defender | -3/Research | Archive Y-54 Guardian | -3/Research | Archive Y-64 Sentinel | -3/Research | Archive Y-72 Warden | -3/Research | Archive D-53 Grenadier | -3/Research | Archive D-63 Destroyer | -3/Research | Archive D-83 Annihilator | -3/Research | Archive X-57 Shotgunner | -3/Research | Archive X-62 Marksman | -3/Research | Archive X-67 Chaingunner | -3/Research | Archive X-72 Disruptor | -3/Research | Archive X-77 Beamer | -3/Research | Archive X-82 Rainmaker | -3/Research | Archive X-87 Electro | -3/Research | Archive H-55 Commando | -3/Research | Archive H-66 Slayer | -3/Research | Archive H-77 Assassin | -3/Research | Archive H-88 Terminator | -3/Research | Archive P-60 Hacker | -3/Research | Archive P-70 Sage | -3/Research | Archive P-80 Master | -3/Research | Archive C-55 Analyst | -3/Quarantine | Archive C-35 Carver | -3/Section 7 | Archive A-27 Freighter | -3/Section 7 | Archive Fabricated ------------ Cld. Plasma Cannon | x1 | -6/Factory Repaired ---------- Arm. Huge Wheel | 34% | -8/Materials Arm. Wheel | 2% | -8/Materials Cld. Particle Cannon | 18% | -6/Factory Cld. Particle Cannon | 32% | -6/Factory Studied --------- Wheel | -9/Materials | Hacked Arm. Huge Wheel | -7/Factory | Hacked Remote Datajack | -6/Factory | Hacked Imp. Remote Datajack | -4/Factory | Hacked Adv. Remote Datajack | -3/Research | Hacked Alien Tech Used ----------------- Sigix Broadsword Dimensional Node Initializer Integrated Dissipator Core Expander Subatomic Replicator LRC Storage Spacefold Activator Transdimensional Reconstructor Core Regenerator High-powered Transdimensional Reconstructor Achievements -------------- Deep Understanding Live, Flee, And Rebuild Martial Artist Metal Spider Physics Protects RIFT Wizard Walls Are Suggestions Challenges ------------ None Game ------ Seed CannonOvertunedSabre Manual? 0 Play Time 11:39:22 Cumulative 1029.3 hours Start 2025.11.05 @ 02:39:52 End 2025.11.05 @ 16:09:25 Sessions 7 Manual Loads 0 Difficulty Rogue Special Mode None Game No. 188 Rogue 188 Adventurer 0 Explorer 0 Win Type 6 Total 59 Types 23/7/10/1/3/1/7/3/2/2 Lore% 92 Gallery% 93 Achievement% 73 Wizard Run 0 Options --------- Layout 0 ASCII 0 Keyboard 0 Movement Numpad Keybinds 0 Fullscreen 1 Font 18/SmallcapsGlow Map View 76x50 Zoom Use 0% Tactical HUD 1 Map Filters NONE Filters NONE Steam 1 RUN: 67c136e4-505c-457e-b026-022d145b9cdc